Body Name,Body Ref,Service Area Categorisation,Expense Type,Payment Date,Transaction Ref,Total Amount,Capital/Revenue,Supplier ID,Supplier Name
Shropshire,00GG,"Cultural, Environmental, Regulatory and Planning Services  - Culture and heritage",Supplies And Services - Miscellaneous Expenses        ,01/12/2017,JOYNOEL10NOV    ,"1,288.00",Revenue,CRD89254,Abf (Shropshire)                        
Shropshire,00GG,None SeRCOP - Management & Support Services - Reallocated,Premises Related - Repair & Maint. General       ,01/12/2017,36809467-02     ,146.34,Revenue,CRD54920,Adt Fire & Security                     
Shropshire,00GG,None SeRCOP - Management & Support Services - Reallocated,Premises Related - Repair & Maint. General       ,01/12/2017,36809467-02     ,331.01,Revenue,CRD54920,Adt Fire & Security                     
Shropshire,00GG,None SeRCOP - Management & Support Services - Reallocated,Premises Related - Repair &Maint. Grounds        ,01/12/2017,36957926-02     ,146.34,Revenue,CRD54920,Adt Fire & Security                     
Shropshire,00GG,None SeRCOP - Management & Support Services - Reallocated,Premises Related - Repair &Maint. Grounds        ,01/12/2017,36957926-02     ,331.01,Revenue,CRD54920,Adt Fire & Security                     
Shropshire,00GG,Children's and Education Services  - Home to College Transport,Transport Related - Contracts                     ,01/12/2017,70116921,"7,037.70",Revenue,CRD73232,Arriva Trains Wales                     
Shropshire,00GG,Children's and Education Services  - Home to College Transport,Transport Related - Contracts                     ,01/12/2017,70191637,"-1,193.45",Revenue,CRD73232,Arriva Trains Wales                     
Shropshire,00GG,Children's and Education Services  - Home to College Transport,Transport Related - Contracts                     ,01/12/2017,X61703354OCT17  ,"1,300.00",Revenue,CRD90218,B Khan                                  
Shropshire,00GG,Children's and Education Services - Social Care and Safeguards Looked After Children,Third Party Payments - Private Contractors           ,01/12/2017,10506,"14,665.40",Revenue,CRT06065,Beechwood College                       
Shropshire,00GG,None SeRCOP - Capital,Contingency/Other Capital - Capital - Exp On Grants & Loan,01/12/2017,2103,"5,350.00",Capital,TOP22998,Candor Care                             
Shropshire,00GG,Children's and Education Services - Social Care and Safeguards Looked After Children,Third Party Payments - Private Contractors           ,01/12/2017,SIMI115445      ,"9,642.86",Revenue,CRD99845,Caretech Community Services Ltd         
Shropshire,00GG,Children's and Education Services - Social Care and Safeguards Looked After Children,Third Party Payments - Private Contractors           ,01/12/2017,SIMI115446      ,"10,714.29",Revenue,CRD99845,Caretech Community Services Ltd         
Shropshire,00GG,Highways and Transport Services - Management & Support Services,Transport Related - Direct Transport Costs        ,01/12/2017,2Q14487783SEP17 ,"2,194.00",Revenue,CRD68272,Central Taxis Ltd T/A Go Carz           
Shropshire,00GG,Adult Social Care - Adults aged under 65 with learning disabilities,Transport Related - Direct Transport Costs        ,01/12/2017,5S10538326OCT17 ,616.00,Revenue,CRD68272,Central Taxis Ltd T/A Go Carz           
Shropshire,00GG,Children's and Education Services  - School and Pupil Support,Transport Related - Direct Transport Costs        ,01/12/2017,X117247834SEP17 ,"1,050.00",Revenue,CRD68272,Central Taxis Ltd T/A Go Carz           
Shropshire,00GG,Children's and Education Services  - Home to College Transport,Transport Related - Contracts                     ,01/12/2017,X617118328OCT17 ,445.00,Revenue,CRD68272,Central Taxis Ltd T/A Go Carz           
Shropshire,00GG,Children's and Education Services  - Home to College Transport,Transport Related - Contracts                     ,01/12/2017,X617268339OCT17 ,456.00,Revenue,CRD68272,Central Taxis Ltd T/A Go Carz           
Shropshire,00GG,Children's and Education Services  - School and Pupil Support,Transport Related - Contracts                     ,01/12/2017,Z417848244OCT17 ,549.00,Revenue,CRD68272,Central Taxis Ltd T/A Go Carz           
Shropshire,00GG,Children's and Education Services  - School and Pupil Support,Transport Related - Contracts                     ,01/12/2017,ZN10308291OCT17 ,"1,077.00",Revenue,CRD68272,Central Taxis Ltd T/A Go Carz           
Shropshire,00GG,Children's and Education Services  - School and Pupil Support,Transport Related - Contracts                     ,01/12/2017,ZN10428305OCT17 ,660.00,Revenue,CRD68272,Central Taxis Ltd T/A Go Carz           
Shropshire,00GG,Adult Social Care - Older people (aged 65 or over) including older mentally ill,Third Party Payments - Private Contractors           ,01/12/2017,CAS/CAAN/DEC2017,"45,553.34",Revenue,CRD70280,Citizens Advice Shropshire              
Shropshire,00GG,Adult Social Care - Older people (aged 65 or over) including older mentally ill,Third Party Payments - Private Contractors           ,01/12/2017,1400003039,"7,000.00",Revenue,CRD02016,Community Council Of Shropshire         
Shropshire,00GG,Adult Social Care - Older people (aged 65 or over) including older mentally ill,Third Party Payments - Private Contractors           ,01/12/2017,1400003040,"4,194.25",Revenue,CRD02016,Community Council Of Shropshire         
Shropshire,00GG,Highways and Transport Services - Parking Services,Premises Related - Cleaning Costs                ,01/12/2017,494860,50.00,Revenue,CRD89801,Contract Services T/A Prime Facility Ser
Shropshire,00GG,Highways and Transport Services - Parking Services,Premises Related - Cleaning Costs                ,01/12/2017,494860,50.00,Revenue,CRD89801,Contract Services T/A Prime Facility Ser
Shropshire,00GG,Highways and Transport Services - Parking Services,Premises Related - Cleaning Costs                ,01/12/2017,494860,50.00,Revenue,CRD89801,Contract Services T/A Prime Facility Ser
Shropshire,00GG,Highways and Transport Services - Public Transport,Premises Related - Cleaning Costs                ,01/12/2017,494860,275.00,Revenue,CRD89801,Contract Services T/A Prime Facility Ser
Shropshire,00GG,Highways and Transport Services - Parking Services,Premises Related - Cleaning Costs                ,01/12/2017,494860,400.00,Revenue,CRD89801,Contract Services T/A Prime Facility Ser
Shropshire,00GG,Highways and Transport Services - Public Transport,Premises Related - Cleaning Costs                ,01/12/2017,494860,475.00,Revenue,CRD89801,Contract Services T/A Prime Facility Ser
Shropshire,00GG,Highways and Transport Services - Public Transport,Premises Related - Cleaning Costs                ,01/12/2017,494860,540.00,Revenue,CRD89801,Contract Services T/A Prime Facility Ser
Shropshire,00GG,"Cultural, Environmental, Regulatory and Planning Services  - Open spaces",Premises Related - Repair & Maint. General       ,01/12/2017,5177,800.00,Revenue,STX00260,Country Gardens & Woodlands Ltd         
Shropshire,00GG,"Cultural, Environmental, Regulatory and Planning Services  - Open spaces",Premises Related - Repair & Maint. General       ,01/12/2017,5178,500.00,Revenue,STX00260,Country Gardens & Woodlands Ltd         
Shropshire,00GG,"Cultural, Environmental, Regulatory and Planning Services  - Open spaces",Premises Related - Repair & Maint. General       ,01/12/2017,5179,800.00,Revenue,STX00260,Country Gardens & Woodlands Ltd         
Shropshire,00GG,"Cultural, Environmental, Regulatory and Planning Services  - Open spaces",Premises Related - Repair & Maint. General       ,01/12/2017,5180,"1,550.00",Revenue,STX00260,Country Gardens & Woodlands Ltd         
Shropshire,00GG,"Cultural, Environmental, Regulatory and Planning Services  - Open spaces",Premises Related - Repair & Maint. General       ,01/12/2017,5180,"1,550.00",Revenue,STX00260,Country Gardens & Woodlands Ltd         
Shropshire,00GG,Adult Social Care - Adults aged under 65 with physical disability or sensory impairment,Third Party Payments - Private Contractors           ,01/12/2017,PSI122367       ,"3,550.40",Revenue,CRD61519,Coverage Care Services Ltd              
Shropshire,00GG,None SeRCOP - Capital,Contingency/Other Capital - Capital - Construction/Conver ,01/12/2017,23356,"13,916.00",Capital,CRD14737,David Rogers Electrical Contractors Ltd 
Shropshire,00GG,"Cultural, Environmental, Regulatory and Planning Services  - Culture and heritage",Supplies And Services - Equipt.  Furn. & Materials    ,01/12/2017,18139S          ,982.50,Revenue,CRD90450,Dining Chairs Uk                        
Shropshire,00GG,"Cultural, Environmental, Regulatory and Planning Services  - Culture and heritage",Supplies And Services - Miscellaneous Expenses        ,01/12/2017,INVARL260917    ,"1,756.18",Revenue,CRT03609,Emma Brunjes Productions Ltd            
Shropshire,00GG,Children's and Education Services - Advisory,Employees - Indirect Employee Expenses    ,01/12/2017,6336,145.00,Revenue,CRD98753,Enable Technology Training Ltd          
Shropshire,00GG,Children's and Education Services - Advisory,Employees - Indirect Employee Expenses    ,01/12/2017,6336,487.50,Revenue,CRD98753,Enable Technology Training Ltd          
Shropshire,00GG,"Cultural, Environmental, Regulatory and Planning Services  - Development Control",Supplies And Services - Miscellaneous Expenses        ,01/12/2017,1664 LAN        ,"2,000.00",Revenue,CRT04067,Esp Ltd                                 
Shropshire,00GG,Adult Social Care - Adults aged under 65 with learning disabilities,Premises Related - Rents                         ,01/12/2017,12404,807.30,Revenue,CRD86872,First Choice Housing Association Ltd    
Shropshire,00GG,Adult Social Care - Adults aged under 65 with learning disabilities,Premises Related - Rents                         ,01/12/2017,12405,676.10,Revenue,CRD86872,First Choice Housing Association Ltd    
Shropshire,00GG,Adult Social Care - Adults aged under 65 with learning disabilities,Premises Related - Rents                         ,01/12/2017,12406,758.37,Revenue,CRD86872,First Choice Housing Association Ltd    
Shropshire,00GG,Adult Social Care - Adults aged under 65 with learning disabilities,Premises Related - Rents                         ,01/12/2017,12411,773.80,Revenue,CRD86872,First Choice Housing Association Ltd    
Shropshire,00GG,Children's and Education Services - Social Care and Safeguards Looked After Children,Third Party Payments - Private Contractors           ,01/12/2017,630002485,"3,165.00",Revenue,CRT05699,Fostering People (Core Assets)          
Shropshire,00GG,Children's and Education Services - Social Care and Safeguards Looked After Children,Third Party Payments - Private Contractors           ,01/12/2017,5536,"3,458.57",Revenue,CRT05669,Fusion Fostering Ltd                    
Shropshire,00GG,Highways and Transport Services - Winter Service,Highways And Transport - Reconstruction                ,01/12/2017,23,600.00,Revenue,CRD86529,George Haywood & Sons                   
Shropshire,00GG,"Cultural, Environmental, Regulatory and Planning Services  - Culture and heritage",Supplies And Services - Miscellaneous Expenses        ,01/12/2017,19736,635.00,Revenue,CRT00176,Happy Days Coaches                      
Shropshire,00GG,None SeRCOP - Management & Support Services - Reallocated,Third Party Payments - Private Contractors           ,01/12/2017,59,"2,000.00",Revenue,CRD99560,Healthwatch Shropshire                  
Shropshire,00GG,Children's and Education Services - Social Care and Safeguards Looked After Children,Third Party Payments - Private Contractors           ,01/12/2017,9139,"13,204.20",Revenue,CRT00051,Horizon Care And Education Group Limited
Shropshire,00GG,Children's and Education Services - Social Care and Safeguards Looked After Children,Third Party Payments - Private Contractors           ,01/12/2017,9145,"13,204.20",Revenue,CRT00051,Horizon Care And Education Group Limited
Shropshire,00GG,Children's and Education Services - Social Care and Safeguards,Third Party Payments - Private Contractors           ,01/12/2017,9233,"-4,440.00",Revenue,CRT00051,Horizon Care And Education Group Limited
Shropshire,00GG,Children's and Education Services - Social Care and Safeguards,Third Party Payments - Private Contractors           ,01/12/2017,9234,"-2,368.00",Revenue,CRT00051,Horizon Care And Education Group Limited
Shropshire,00GG,Highways and Transport Services - Winter Service,Highways And Transport - Reconstruction                ,01/12/2017,1081,500.00,Revenue,CRD80436,I R Beavan                              
Shropshire,00GG,Central Services - Trading undertakings,Supplies And Services - Clothing Uniform & Laundry    ,01/12/2017,11328,6.55,Revenue,CRD86530,Image@Work                              
Shropshire,00GG,Central Services - Trading Services,Supplies And Services - Clothing Uniform & Laundry    ,01/12/2017,11328,32.15,Revenue,CRD86530,Image@Work                              
Shropshire,00GG,Central Services - Trading Services,Supplies And Services - Clothing Uniform & Laundry    ,01/12/2017,11328,43.50,Revenue,CRD86530,Image@Work                              
Shropshire,00GG,Central Services - Trading undertakings,Supplies And Services - Clothing Uniform & Laundry    ,01/12/2017,11328,62.70,Revenue,CRD86530,Image@Work                              
Shropshire,00GG,Central Services - Trading undertakings,Supplies And Services - Clothing Uniform & Laundry    ,01/12/2017,11328,73.55,Revenue,CRD86530,Image@Work                              
Shropshire,00GG,Central Services - Trading Services,Supplies And Services - Clothing Uniform & Laundry    ,01/12/2017,11328,204.45,Revenue,CRD86530,Image@Work                              
Shropshire,00GG,"Cultural, Environmental, Regulatory and Planning Services  - Open spaces",Premises Related - Repair & Maint. General       ,01/12/2017,4954,637.50,Revenue,CRD93787,Independent Grounds Maintenance         
Shropshire,00GG,"Cultural, Environmental, Regulatory and Planning Services  - Open spaces",Premises Related - Repair & Maint. General       ,01/12/2017,4973,750.00,Revenue,CRD93787,Independent Grounds Maintenance         
Shropshire,00GG,Adult Social Care - Adults aged under 65 with physical disability or sensory impairment,Third Party Payments - Private Contractors           ,01/12/2017,T-1245          ,"6,667.00",Revenue,CRD78226,Independent Living Partnership Ltd      
Shropshire,00GG,Adult Social Care - Adults aged under 65 with physical disability or sensory impairment,Third Party Payments - Private Contractors           ,01/12/2017,T-1245          ,"17,786.25",Revenue,CRD78226,Independent Living Partnership Ltd      
Shropshire,00GG,Children's and Education Services - Directorate,Supplies And Services - Miscellaneous Expenses        ,01/12/2017,35669,6.00,Revenue,CRD94989,Lee Bolton Monier-Willams               
Shropshire,00GG,Children's and Education Services - Directorate,Supplies And Services - Miscellaneous Expenses        ,01/12/2017,35669,"1,200.00",Revenue,CRD94989,Lee Bolton Monier-Willams               
Shropshire,00GG,None SeRCOP - Capital,Contingency/Other Capital - Capital - Construction/Conver ,01/12/2017,9699,"1,750.00",Capital,STX00076,Mant Ltd                                
Shropshire,00GG,"Cultural, Environmental, Regulatory and Planning Services  - Culture and heritage",Supplies And Services - Catering                      ,01/12/2017,60336802,"2,909.51",Revenue,CRD87775,Matthew Clark Wholesale Ltd             
Shropshire,00GG,None SeRCOP - Capital,Contingency/Other Capital - Capital - Construction/Conver ,01/12/2017,F1091           ,"502,011.20",Capital,CRD81715,Mcphillips (Wellington) Ltd             
Shropshire,00GG,None SeRCOP - Capital,Contingency/Other Capital - Capital - Exp On Grants & Loan,01/12/2017,6050003/402     ,556.30,Capital,CRD94263,Mears Group Plc                         
Shropshire,00GG,None SeRCOP - Capital,Contingency/Other Capital - Capital - Exp On Grants & Loan,01/12/2017,6050003/406     ,546.42,Capital,CRD94263,Mears Group Plc                         
Shropshire,00GG,Housing Services - Other Welfare Services,Supplies And Services - Miscellaneous Expenses        ,01/12/2017,MEA157697       ,"15,125.00",Revenue,CRD94263,Mears Group Plc                         
Shropshire,00GG,Public Health - Other,Supplies And Services - Miscellaneous Expenses        ,01/12/2017,WS348           ,"1,590.00",Revenue,CRT00669,Merulae Ltd                             
Shropshire,00GG,Adult Social Care - Older people (aged 65 or over) including older mentally ill,Employees - Indirect Employee Expenses    ,01/12/2017,INV229115       ,87.63,Revenue,CRT02641,Newcross Healthcare Solutions           
Shropshire,00GG,Adult Social Care - Older people (aged 65 or over) including older mentally ill,Employees - Indirect Employee Expenses    ,01/12/2017,INV229115       ,101.76,Revenue,CRT02641,Newcross Healthcare Solutions           
Shropshire,00GG,Adult Social Care - Older people (aged 65 or over) including older mentally ill,Employees - Indirect Employee Expenses    ,01/12/2017,INV229115       ,102.63,Revenue,CRT02641,Newcross Healthcare Solutions           
Shropshire,00GG,Adult Social Care - Older people (aged 65 or over) including older mentally ill,Employees - Indirect Employee Expenses    ,01/12/2017,INV229115       ,103.26,Revenue,CRT02641,Newcross Healthcare Solutions           
Shropshire,00GG,Adult Social Care - Older people (aged 65 or over) including older mentally ill,Employees - Indirect Employee Expenses    ,01/12/2017,INV229115       ,104.89,Revenue,CRT02641,Newcross Healthcare Solutions           
Shropshire,00GG,Adult Social Care - Older people (aged 65 or over) including older mentally ill,Employees - Indirect Employee Expenses    ,01/12/2017,INV229115       ,116.37,Revenue,CRT02641,Newcross Healthcare Solutions           
Shropshire,00GG,Adult Social Care - Older people (aged 65 or over) including older mentally ill,Employees - Indirect Employee Expenses    ,01/12/2017,INV229115       ,120.42,Revenue,CRT02641,Newcross Healthcare Solutions           
Shropshire,00GG,Adult Social Care - Older people (aged 65 or over) including older mentally ill,Employees - Indirect Employee Expenses    ,01/12/2017,INV229115       ,120.46,Revenue,CRT02641,Newcross Healthcare Solutions           
Shropshire,00GG,Adult Social Care - Older people (aged 65 or over) including older mentally ill,Employees - Indirect Employee Expenses    ,01/12/2017,INV229115       ,152.00,Revenue,CRT02641,Newcross Healthcare Solutions           
Shropshire,00GG,Adult Social Care - Older people (aged 65 or over) including older mentally ill,Employees - Indirect Employee Expenses    ,01/12/2017,INV229115       ,230.53,Revenue,CRT02641,Newcross Healthcare Solutions           
Shropshire,00GG,Adult Social Care - Older people (aged 65 or over) including older mentally ill,Employees - Indirect Employee Expenses    ,01/12/2017,INV229115       ,261.10,Revenue,CRT02641,Newcross Healthcare Solutions           
Shropshire,00GG,Adult Social Care - Older people (aged 65 or over) including older mentally ill,Employees - Indirect Employee Expenses    ,01/12/2017,INV229115       ,282.60,Revenue,CRT02641,Newcross Healthcare Solutions           
Shropshire,00GG,Adult Social Care - Older people (aged 65 or over) including older mentally ill,Employees - Indirect Employee Expenses    ,01/12/2017,INV229115       ,353.07,Revenue,CRT02641,Newcross Healthcare Solutions           
Shropshire,00GG,Adult Social Care - Older people (aged 65 or over) including older mentally ill,Employees - Indirect Employee Expenses    ,01/12/2017,INV229115       ,353.07,Revenue,CRT02641,Newcross Healthcare Solutions           
Shropshire,00GG,Adult Social Care - Older people (aged 65 or over) including older mentally ill,Employees - Indirect Employee Expenses    ,01/12/2017,INV229115       ,353.07,Revenue,CRT02641,Newcross Healthcare Solutions           
Shropshire,00GG,Adult Social Care - Older people (aged 65 or over) including older mentally ill,Employees - Indirect Employee Expenses    ,01/12/2017,INV229115       ,423.93,Revenue,CRT02641,Newcross Healthcare Solutions           
Shropshire,00GG,Children's and Education Services - Social Care and Safeguards Looked After Children,Third Party Payments - Private Contractors           ,01/12/2017,31238,"4,890.00",Revenue,CRT00626,Nexus Fostering                         
Shropshire,00GG,Central Services - Trading Services,Supplies And Services - Miscellaneous Expenses        ,01/12/2017,9275,"1,305.00",Revenue,CRD80140,Noss Ltd                                
Shropshire,00GG,Children's and Education Services - Other Strategic Functions,Supplies And Services - Schools Equipt. & Materials   ,01/12/2017,97421286,427.90,Revenue,CRT05769,Nottingham Rehab Limited                
Shropshire,00GG,Central Services - Trading Services,Supplies And Services - Miscellaneous Expenses        ,01/12/2017,SHC65           ,"1,513.95",Revenue,CRT01381,Occupational Health Medical Limited     
Shropshire,00GG,Children's and Education Services - Social Care and Safeguards Looked After Children,Third Party Payments - Private Contractors           ,01/12/2017,1450200260,"17,678.49",Revenue,CRT05586,Options Autism 5 Ltd                    
Shropshire,00GG,Children's and Education Services - Social Care and Safeguards Looked After Children,Third Party Payments - Private Contractors           ,01/12/2017,1450200261,"21,410.27",Revenue,CRT05586,Options Autism 5 Ltd                    
Shropshire,00GG,Children's and Education Services - Social Care and Safeguards Looked After Children,Third Party Payments - Private Contractors           ,01/12/2017,1450200262,"17,678.50",Revenue,CRT05586,Options Autism 5 Ltd                    
Shropshire,00GG,Highways and Transport Services - Winter Service,Highways And Transport - Reconstruction                ,01/12/2017,967,800.00,Revenue,CRD69102,P J Manford                             
Shropshire,00GG,Central Services - Trading Services,Supplies And Services - Miscellaneous Expenses        ,01/12/2017,219773,"11,025.00",Revenue,CRT05256,Permanent Futures Ltd                   
Shropshire,00GG,Central Services - Trading Services,Supplies And Services - Miscellaneous Expenses        ,01/12/2017,219775,"6,000.00",Revenue,CRT05256,Permanent Futures Ltd                   
Shropshire,00GG,Central Services - Trading Services,Supplies And Services - Miscellaneous Expenses        ,01/12/2017,219776,"9,350.00",Revenue,CRT05256,Permanent Futures Ltd                   
Shropshire,00GG,Children's and Education Services - Social Care and Safeguards Looked After Children,Third Party Payments - Private Contractors           ,01/12/2017,P|YP0000009314  ,"3,814.20",Revenue,CRD65897,Prospects For Young People Ltd          
Shropshire,00GG,Central Services - Other Services,Supplies And Services - Miscellaneous Expenses        ,01/12/2017,368487,"-1,868.97",Revenue,CRT05685,Redacted - Commercial Interest
Shropshire,00GG,Central Services - Other Services,Supplies And Services - Miscellaneous Expenses        ,01/12/2017,368487,"2,108.50",Revenue,CRT05685,Redacted - Commercial Interest
Shropshire,00GG,"Cultural, Environmental, Regulatory and Planning Services  - Culture and heritage",Income - Sales                         ,01/12/2017,43009,659.20,Revenue,CRD87383,Redacted - Personal Information
Shropshire,00GG,Children's and Education Services  - School and Pupil Support,Transport Related - Contracts                     ,01/12/2017,43070,552.73,Revenue,CRT06265,Redacted - Personal Information
Shropshire,00GG,Children's and Education Services  - School and Pupil Support,Transport Related - Contracts                     ,01/12/2017,43070,652.04,Revenue,CRT05736,Redacted - Personal Information
Shropshire,00GG,Children's and Education Services  - School and Pupil Support,Transport Related - Contracts                     ,01/12/2017,43070,722.70,Revenue,TOP28725,Redacted - Personal Information
Shropshire,00GG,Children's and Education Services  - School and Pupil Support,Transport Related - Contracts                     ,01/12/2017,43070,863.64,Revenue,CRT06070,Redacted - Personal Information
Shropshire,00GG,Children's and Education Services  - School and Pupil Support,Transport Related - Contracts                     ,01/12/2017,43070,898.18,Revenue,TOP28992,Redacted - Personal Information
Shropshire,00GG,Children's and Education Services  - Home to College Transport,Transport Related - Contracts                     ,01/12/2017,43070,"1,155.00",Revenue,TOP29141,Redacted - Personal Information
Shropshire,00GG,Children's and Education Services  - Home to College Transport,Transport Related - Contracts                     ,01/12/2017,43070,"1,381.82",Revenue,TOP28995,Redacted - Personal Information
Shropshire,00GG,Children's and Education Services  - School and Pupil Support,Transport Related - Contracts                     ,01/12/2017,DEC 17 PTB      ,552.72,Revenue,TOP22272,Redacted - Personal Information
Shropshire,00GG,None SeRCOP - Capital,Contingency/Other Capital - Capital - Exp On Grants & Loan,01/12/2017,MACDONALD/01    ,"4,371.38",Capital,TOP29105,Redacted - Personal Information
Shropshire,00GG,Children's and Education Services  - School and Pupil Support,Transport Related - Contracts                     ,01/12/2017,PTB DEC 17      ,755.68,Revenue,TOP29541,Redacted - Personal Information
Shropshire,00GG,Children's and Education Services - Social Care and Safeguards Looked After Children,Third Party Payments - Private Contractors           ,01/12/2017,RD591           ,"12,656.37",Revenue,CRT05633,Rite Directions Ltd                     
Shropshire,00GG,Adult Social Care - Other adult social care - other,Third Party Payments - Private Contractors           ,01/12/2017,645,360.00,Revenue,CRD99775,Salop Medical Services                  
Shropshire,00GG,Adult Social Care - Adults aged under 65 with physical disability or sensory impairment,Third Party Payments - Private Contractors           ,01/12/2017,645,540.00,Revenue,CRD99775,Salop Medical Services                  
Shropshire,00GG,"Highways and Transport Services - Transport Planing, Policy & Strategy",Supplies And Services - Miscellaneous Expenses        ,01/12/2017,LANDREGOCT17    ,"1,731.00",Revenue,CRD90927,Sc Land Registry Imp A/C
Shropshire,00GG,Environment & Regulatory - Regulatory Services,Supplies And Services - Miscellaneous Expenses        ,01/12/2017,SHG.NOVEMBER2017,"15,416.00",Revenue,CRD91194,Shropshire Housing                      
Shropshire,00GG,Adult Social Care - Adults aged under 65 with mental health needs,Third Party Payments - Private Contractors           ,01/12/2017,1400003041,85.95,Revenue,CRT01833,Shropshire Rcc                          
Shropshire,00GG,Adult Social Care - Adults aged under 65 with mental health needs,Third Party Payments - Private Contractors           ,01/12/2017,1400003041,"1,000.00",Revenue,CRT01833,Shropshire Rcc                          
Shropshire,00GG,Adult Social Care - Adults aged under 65 with physical disability or sensory impairment,Supplies And Services - Miscellaneous Expenses        ,01/12/2017,HDST-08 WK30    ,"1,365.70",Revenue,CRT03486,Slrc Trading Ltd                        
Shropshire,00GG,Children's and Education Services - Adult and community learning,Supplies And Services - Miscellaneous Expenses        ,01/12/2017,I0069200        ,620.00,Revenue,CRD92011,South Staffs & Shropshire Healthcare    
Shropshire,00GG,Children's and Education Services - Adult and community learning,Supplies And Services - Miscellaneous Expenses        ,01/12/2017,I0069200        ,"1,000.00",Revenue,CRD92011,South Staffs & Shropshire Healthcare    
Shropshire,00GG,Central Services - Trading Services,Employees - Indirect Employee Expenses    ,01/12/2017,64713,747.00,Revenue,CRT05083,South West Councils                     
Shropshire,00GG,Central Services - Trading Services,Supplies And Services - Miscellaneous Expenses        ,01/12/2017,210027,"2,500.00",Revenue,CRT05398,Strategic Insights Limited              
Shropshire,00GG,Adult Social Care - Adults aged under 65 with physical disability or sensory impairment,Supplies And Services - Miscellaneous Expenses        ,01/12/2017,19423,"5,473.80",Revenue,CRD60837,Surecare Shropshire Ltd                 
Shropshire,00GG,Adult Social Care - Adults aged under 65 with physical disability or sensory impairment,Third Party Payments - Private Contractors           ,01/12/2017,01J604648 101217,"2,116.80",Revenue,HOM01535,Tailored Care Ltd                       
Shropshire,00GG,Adult Social Care - Adults aged under 65 with physical disability or sensory impairment,Third Party Payments - Private Contractors           ,01/12/2017,02J604648 101217,"19,540.64",Revenue,HOM01535,Tailored Care Ltd                       
Shropshire,00GG,Adult Social Care - Adults aged under 65 with physical disability or sensory impairment,Third Party Payments - Private Contractors           ,01/12/2017,03J604648 101217,"8,335.37",Revenue,HOM01535,Tailored Care Ltd                       
Shropshire,00GG,Adult Social Care - Adults aged under 65 with learning disabilities,Third Party Payments - Private Contractors           ,01/12/2017,04J604648 101217,"10,352.96",Revenue,HOM01535,Tailored Care Ltd                       
Shropshire,00GG,Adult Social Care - Adults aged under 65 with physical disability or sensory impairment,Third Party Payments - Private Contractors           ,01/12/2017,AC1CRE02        ,"-40,822.33",Revenue,HOM01535,Tailored Care Ltd                       
Shropshire,00GG,"Cultural, Environmental, Regulatory and Planning Services  - Culture and heritage",Premises Related - Repair & Maint. General       ,01/12/2017,11204,422.00,Revenue,STX00297,Taylors Mechanical Ltd                  
Shropshire,00GG,"Cultural, Environmental, Regulatory and Planning Services  - Building Control",Employees - Indirect Employee Expenses    ,01/12/2017,1023716,"1,872.05",Revenue,CRT04116,The Oyster Partnership Ltd              
Shropshire,00GG,Public Health - Other,Third Party Payments - Private Contractors           ,01/12/2017,10122079,"3,838.83",Revenue,CRD88941,The Shrews & Telford Hospital Nhs Trust 
Shropshire,00GG,"Cultural, Environmental, Regulatory and Planning Services  - Development Control",Supplies And Services - Miscellaneous Expenses        ,01/12/2017,2.50001E+13,"8,100.00",Revenue,CRD78742,Valuation Office Agency                 
Shropshire,00GG,None SeRCOP - Capital,Contingency/Other Capital - Capital - Exp On Grants & Loan,01/12/2017,153,"4,450.37",Capital,TOP29063,W S Building Services (Shropshire) Ltd  
Shropshire,00GG,Housing Services - Other council property,Supplies And Services - Travel Expenses Etc.          ,01/12/2017,166,"1,256.00",Revenue,CRT02589,Warper Ltd                              
Shropshire,00GG,"Cultural, Environmental, Regulatory and Planning Services  - Culture and heritage",Premises Related - R & M Property Policy Group   ,01/12/2017,2806,540.10,Revenue,STX00556,Wrekin Drain Services Ltd               
Shropshire,00GG,Children's and Education Services  - Home to College Transport,Transport Related - Contracts                     ,04/12/2017,X117063872OCT17 ,660.00,Revenue,CRD90254,Access Cars Shrewsbury Ltd              
Shropshire,00GG,"Cultural, Environmental, Regulatory and Planning Services  - Culture and heritage",Supplies And Services - Miscellaneous Expenses        ,04/12/2017,INV-0516        ,"5,617.52",Revenue,CRT06363,Alchemy Promotions                      
Shropshire,00GG,Central Services - Trading Services,Supplies And Services - Communications & Computing    ,04/12/2017,1/953382        ,"5,620.00",Revenue,CRD97381,Atlantic Data Ltd                       
Shropshire,00GG,Children's and Education Services - Social Care and Safeguards Family Support Services,Supplies And Services - Miscellaneous Expenses        ,04/12/2017,SIN013586       ,"3,779.00",Revenue,CRD70126,Autism West Midlands                    
Shropshire,00GG,"Cultural, Environmental, Regulatory and Planning Services  - Culture and heritage",Supplies And Services - Equipt.  Furn. & Materials    ,04/12/2017,2296012,625.00,Revenue,CRD60214,Bertram Trading Limited                 
Shropshire,00GG,"Cultural, Environmental, Regulatory and Planning Services  - Culture and heritage",Supplies And Services - Equipt.  Furn. & Materials    ,04/12/2017,2296031,754.44,Revenue,CRD60214,Bertram Trading Limited                 
Shropshire,00GG,Children's and Education Services - Social Care and Safeguards Family Support Services,Third Party Payments - Private Contractors           ,04/12/2017,28318,600.00,Revenue,CRD89010,Bluebird Care (Shropshire Care Ltd)     
Shropshire,00GG,Children's and Education Services - Social Care and Safeguards Family Support Services,Third Party Payments - Private Contractors           ,04/12/2017,28495,600.00,Revenue,CRD89010,Bluebird Care (Shropshire Care Ltd)     
Shropshire,00GG,Children's and Education Services - Social Care and Safeguards Family Support Services,Third Party Payments - Private Contractors           ,04/12/2017,82680,540.00,Revenue,CRD89010,Bluebird Care (Shropshire Care Ltd)     
Shropshire,00GG,Adult Social Care - Adults aged under 65 with learning disabilities,Premises Related - Rents                         ,04/12/2017,SIBHA/000550    ,"3,095.59",Revenue,CRT02555,Bromford Housing Association            
Shropshire,00GG,"Cultural, Environmental, Regulatory and Planning Services  - Street Cleansing (not chargeable to Highways)",Premises Related - R & M Property Policy Group   ,04/12/2017,4830/18/3       ,788.00,Revenue,CRD87677,Brooke Edgley Specialist Technical Servi
Shropshire,00GG,"Cultural, Environmental, Regulatory and Planning Services  - Economic Development",Premises Related - R & M Property Policy Group   ,04/12/2017,4830/18/4       ,887.00,Revenue,CRD87677,Brooke Edgley Specialist Technical Servi
Shropshire,00GG,"Cultural, Environmental, Regulatory and Planning Services  - Recreation and sport",Premises Related - R & M Property Policy Group   ,04/12/2017,4830/18/5       ,"1,084.00",Revenue,CRD87677,Brooke Edgley Specialist Technical Servi
Shropshire,00GG,Highways and Transport Services - Parking Services,Premises Related - R & M Property Policy Group   ,04/12/2017,4830/18/6       ,454.00,Revenue,CRD87677,Brooke Edgley Specialist Technical Servi
Shropshire,00GG,Adult Social Care - Adults aged under 65 with learning disabilities,Transport Related - Direct Transport Costs        ,04/12/2017,5S10537833SEP17 ,748.00,Revenue,CRD68272,Central Taxis Ltd T/A Go Carz           
Shropshire,00GG,Children's and Education Services  - School and Pupil Support,Transport Related - Contracts                     ,04/12/2017,X116907781SEP17 ,999.00,Revenue,CRD68272,Central Taxis Ltd T/A Go Carz           
Shropshire,00GG,Adult Social Care - Adults aged under 65 with learning disabilities,Transport Related - Direct Transport Costs        ,04/12/2017,X616997827SEP17 ,472.32,Revenue,CRD68272,Central Taxis Ltd T/A Go Carz           
Shropshire,00GG,Children's and Education Services  - School and Pupil Support,Transport Related - Contracts                     ,04/12/2017,X616997827SEP17 ,679.68,Revenue,CRD68272,Central Taxis Ltd T/A Go Carz           
Shropshire,00GG,Children's and Education Services  - Home to College Transport,Transport Related - Contracts                     ,04/12/2017,X617207839SEP17 ,540.00,Revenue,CRD68272,Central Taxis Ltd T/A Go Carz           
Shropshire,00GG,Children's and Education Services  - School and Pupil Support,Transport Related - Contracts                     ,04/12/2017,Z420328307OCT17 ,512.00,Revenue,CRD68272,Central Taxis Ltd T/A Go Carz           
Shropshire,00GG,"Cultural, Environmental, Regulatory and Planning Services  - Culture and heritage",Premises Related - R & M Property Policy Group   ,04/12/2017,17-100062       ,515.80,Revenue,CRD02106,Cooper & Williams Ltd                   
Shropshire,00GG,None SeRCOP - Capital,Contingency/Other Capital - Capital - Exp On Grants & Loan,04/12/2017,1A DOGPOLE GRANT,"20,000.00",Capital,CRD99976,Cooper Green Pooks                      
Shropshire,00GG,Central Services - Trading Services,Premises Related - R & M Property Policy Group   ,04/12/2017,1947,484.00,Revenue,CRD58052,D R & J Orritt                          
Shropshire,00GG,"Cultural, Environmental, Regulatory and Planning Services  - Culture and heritage",Supplies And Services - Miscellaneous Expenses        ,04/12/2017,60309577,511.91,Revenue,CRD90893,Entertainment One Uk Ltd                
Shropshire,00GG,"Cultural, Environmental, Regulatory and Planning Services  - Culture and heritage",Employees - Indirect Employee Expenses    ,04/12/2017,21 2017         ,680.00,Revenue,CRD93110,Frazer Picot                            
Shropshire,00GG,None SeRCOP - Management & Support Services - Reallocated,Income - Other Services                ,04/12/2017,S1/34629 REFUND ,507.42,Revenue,ASC00008,General Sundry - Bacs                   
Shropshire,00GG,"Cultural, Environmental, Regulatory and Planning Services  - Open spaces",Premises Related - Repair & Maint. General       ,04/12/2017,77116,"1,337.76",Revenue,CRD76819,Hales Sawmills Ltd                      
Shropshire,00GG,Children's and Education Services  - School and Pupil Support,Transport Related - Contracts                     ,04/12/2017,X1169618664OCT17,"2,167.50",Revenue,CRD77164,Jeff'S Taxis & Minibuses                
Shropshire,00GG,Children's and Education Services  - School and Pupil Support,Transport Related - Contracts                     ,04/12/2017,X1169818655OCT17,223.60,Revenue,CRD77164,Jeff'S Taxis & Minibuses                
Shropshire,00GG,Children's and Education Services  - School and Pupil Support,Transport Related - Contracts                     ,04/12/2017,X1169818655OCT17,"2,012.40",Revenue,CRD77164,Jeff'S Taxis & Minibuses                
Shropshire,00GG,Public Health - Other,Third Party Payments - Private Contractors           ,04/12/2017,3290,"20,075.00",Revenue,CRT05729,Kaleidoscope Project                    
Shropshire,00GG,Public Health - Other,Third Party Payments - Private Contractors           ,04/12/2017,3332,"20,075.00",Revenue,CRT05729,Kaleidoscope Project                    
Shropshire,00GG,Public Health - Other,Third Party Payments - Private Contractors           ,04/12/2017,3370,"20,075.00",Revenue,CRT05729,Kaleidoscope Project                    
Shropshire,00GG,Public Health - Other,Supplies And Services - Miscellaneous Expenses        ,04/12/2017,KWHF 11         ,"3,000.00",Revenue,CRT04902,Katy Warren Health & Fitness Ltd        
Shropshire,00GG,Adult Social Care - Other adult social care - other,Third Party Payments - Private Contractors           ,04/12/2017,01J604479       ,"16,544.51",Revenue,HOM01914,Keenrick Limited                        
Shropshire,00GG,Public Health - Other,Third Party Payments - Private Contractors           ,04/12/2017,Q1/END JUNE17   ,"1,174.16",Revenue,CRD85424,Marysville Medical Practice             
Shropshire,00GG,Public Health - Other,Third Party Payments - Private Contractors           ,04/12/2017,Q2/END SEPT 17  ,"1,174.16",Revenue,CRD85424,Marysville Medical Practice             
Shropshire,00GG,Public Health - Other,Third Party Payments - Private Contractors           ,04/12/2017,Q4/JAN-MAR17    ,"1,174.16",Revenue,CRD85424,Marysville Medical Practice             
Shropshire,00GG,"Cultural, Environmental, Regulatory and Planning Services  - Culture and heritage",Premises Related - R & M Property Policy Group   ,04/12/2017,6930,558.00,Revenue,CRD88743,Midland Masonry                         
Shropshire,00GG,Adult Social Care - Other adult social care - other,Third Party Payments - Private Contractors           ,04/12/2017,151016706,585.00,Revenue,CRD75794,Mount House (I)                         
Shropshire,00GG,Housing Services - Homelessness,Supplies And Services - Equipt.  Furn. & Materials    ,04/12/2017,SISD/00001068   ,310.00,Revenue,CRT05107,Old Park Services Ltd - Reviive         
Shropshire,00GG,Housing Services - Homelessness,Supplies And Services - Equipt.  Furn. & Materials    ,04/12/2017,SISD/00001068   ,"1,308.33",Revenue,CRT05107,Old Park Services Ltd - Reviive         
Shropshire,00GG,Housing Services - Homelessness,Supplies And Services - Equipt.  Furn. & Materials    ,04/12/2017,SISD/00001069   ,288.30,Revenue,CRT05107,Old Park Services Ltd - Reviive         
Shropshire,00GG,Housing Services - Homelessness,Supplies And Services - Equipt.  Furn. & Materials    ,04/12/2017,SISD/00001069   ,479.17,Revenue,CRT05107,Old Park Services Ltd - Reviive         
Shropshire,00GG,Children's and Education Services - Directorate,Income - Government Grants Outside Aef ,04/12/2017,VSB-HILLCREST   ,800.00,Revenue,CRT05507,Options Beds (1) Ltd                    
Shropshire,00GG,Children's and Education Services - Directorate,Income - Government Grants Outside Aef ,04/12/2017,VSB-HILLCREST   ,"2,400.00",Revenue,CRT05507,Options Beds (1) Ltd                    
Shropshire,00GG,"Cultural, Environmental, Regulatory and Planning Services  - Recreation and sport",Premises Related - Repair & Maint. General       ,04/12/2017,314067,466.20,Revenue,CRD86945,Osprey Water Management Ltd             
Shropshire,00GG,Central Services - Trading Services,Premises Related - R & M Property Policy Group   ,04/12/2017,7539,775.78,Revenue,CRD03768,R G Edwards & Co Ltd                    
Shropshire,00GG,None SeRCOP - Capital,Contingency/Other Capital - Capital - Construction/Conver ,04/12/2017,7485C           ,"5,865.70",Capital,CRD03768,R G Edwards & Co Ltd                    
Shropshire,00GG,Children's and Education Services  - School and Pupil Support,Transport Related - Contracts                     ,04/12/2017,BC0001794OCT17  ,"1,519.80",Revenue,CRD57626,R J Bradbury & Son Ltd T/A Mytton Vale H
Shropshire,00GG,Children's and Education Services  - School and Pupil Support,Transport Related - Contracts                     ,04/12/2017,BC1108795OCT17  ,"1,600.50",Revenue,CRD57626,R J Bradbury & Son Ltd T/A Mytton Vale H
Shropshire,00GG,Children's and Education Services  - School and Pupil Support,Transport Related - Contracts                     ,04/12/2017,PO1012793OCT17  ,"1,553.80",Revenue,CRD57626,R J Bradbury & Son Ltd T/A Mytton Vale H
Shropshire,00GG,Central Services - Trading Services,Supplies And Services - Printing & Stationery         ,04/12/2017,57327308,"7,500.00",Revenue,CRD84595,Ricoh Uk  Ltd                           
Shropshire,00GG,Central Services - Trading Services,Supplies And Services - Printing & Stationery         ,04/12/2017,57327308,"7,500.00",Revenue,CRD84595,Ricoh Uk  Ltd                           
Shropshire,00GG,"Cultural, Environmental, Regulatory and Planning Services  - Economic Development",Premises Related - Repair & Maint. General       ,04/12/2017,13551,560.00,Revenue,CRT01094,Rmf (Landscaping) Ltd                   
Shropshire,00GG,"Cultural, Environmental, Regulatory and Planning Services  - Economic Development",Premises Related - Repair & Maint. General       ,04/12/2017,13553,"1,120.00",Revenue,CRT01094,Rmf (Landscaping) Ltd                   
Shropshire,00GG,Adult Social Care - Adults aged under 65 with mental health needs,Supplies And Services - Services/Allowances           ,04/12/2017,DOLKSHEMENDRA938,560.00,Revenue,CRD88828,Sajkum Limited                          
Shropshire,00GG,Central Services - Trading Services,Premises Related - Repair & Maint. General       ,04/12/2017,STC3173         ,"1,219.00",Revenue,CRD87402,Shrewsbury Town Council                 
Shropshire,00GG,Children's and Education Services - Youth,Premises Related - Repair & Maint. General       ,04/12/2017,STC3181         ,465.00,Revenue,CRD87402,Shrewsbury Town Council                 
Shropshire,00GG,Children's and Education Services - Social Care and Safeguards Family Support Services,Supplies And Services - Miscellaneous Expenses        ,04/12/2017,964,693.16,Revenue,CRD86844,Shrewsbury Town In The Community        
Shropshire,00GG,Children's and Education Services - Social Care and Safeguards Family Support Services,Supplies And Services - Miscellaneous Expenses        ,04/12/2017,1037,693.16,Revenue,CRD86844,Shrewsbury Town In The Community        
Shropshire,00GG,Children's and Education Services - Social Care and Safeguards Family Support Services,Supplies And Services - Miscellaneous Expenses        ,04/12/2017,SHRP0004220     ,"1,050.00",Revenue,CRD98094,Shropshire Community Leisure Trust      
Shropshire,00GG,Central Services - Trading Services,Supplies And Services - Travel Expenses Etc.          ,04/12/2017,64816,"1,551.00",Revenue,CRT05083,South West Councils                     
Shropshire,00GG,Central Services - Trading Services,Supplies And Services - Communications & Computing    ,04/12/2017,1067004,"1,250.00",Revenue,CRD56358,Stone Computers Ltd                     
Shropshire,00GG,Children's and Education Services  - School and Pupil Support,Transport Related - Contracts                     ,04/12/2017,CM109919731SEP17,"1,420.00",Revenue,CRT02385,Swan Cabs Limited                       
Shropshire,00GG,Children's and Education Services  - School and Pupil Support,Transport Related - Contracts                     ,04/12/2017,CM109920195OCT17,"1,440.00",Revenue,CRT02385,Swan Cabs Limited                       
Shropshire,00GG,"Cultural, Environmental, Regulatory and Planning Services  - Culture and heritage",Premises Related - R & M Property Policy Group   ,04/12/2017,00-64-08        ,"1,682.00",Revenue,CRD16289,Telford Thermal Insulation Contract Ltd 
Shropshire,00GG,Children's and Education Services - Social Care and Safeguards Family Support Services,Supplies And Services - Miscellaneous Expenses        ,04/12/2017,886,555.50,Revenue,CRD61388,The Marches Family Network              
Shropshire,00GG,Children's and Education Services - Children's Centres,Premises Related - Repair & Maint. General       ,04/12/2017,286593,51.64,Revenue,CRD99744,Walker Fire (Uk) Ltd                    
Shropshire,00GG,Children's and Education Services - Social Care and Safeguards Other,Premises Related - Repair & Maint. General       ,04/12/2017,286593,140.76,Revenue,CRD99744,Walker Fire (Uk) Ltd                    
Shropshire,00GG,Central Services - Trading Services,Supplies And Services - Miscellaneous Expenses        ,04/12/2017,286593,388.03,Revenue,CRD99744,Walker Fire (Uk) Ltd                    
Shropshire,00GG,Central Services - Trading Services,Premises Related - Repair & Maint. General       ,04/12/2017,286593,"1,025.19",Revenue,CRD99744,Walker Fire (Uk) Ltd                    
Shropshire,00GG,Children's and Education Services - Social Care and Safeguards Looked After Children,Premises Related - Repair & Maint. General       ,04/12/2017,286597,34.10,Revenue,CRD99744,Walker Fire (Uk) Ltd                    
Shropshire,00GG,Central Services - Trading Services,Supplies And Services - Miscellaneous Expenses        ,04/12/2017,286597,44.35,Revenue,CRD99744,Walker Fire (Uk) Ltd                    
Shropshire,00GG,Children's and Education Services - Children's Centres,Premises Related - Repair & Maint. General       ,04/12/2017,286597,107.12,Revenue,CRD99744,Walker Fire (Uk) Ltd                    
Shropshire,00GG,Central Services - Trading Services,Supplies And Services - Miscellaneous Expenses        ,04/12/2017,286597,155.07,Revenue,CRD99744,Walker Fire (Uk) Ltd                    
Shropshire,00GG,None SeRCOP - Capital,Contingency/Other Capital - Capital - Construction/Conver ,04/12/2017,16674,"5,774.40",Capital,CRD56341,Window & Door Contract Services         
Shropshire,00GG,None SeRCOP - Capital,Contingency/Other Capital - Capital - Construction/Conver ,04/12/2017,16676,"1,568.84",Capital,CRD56341,Window & Door Contract Services         
Shropshire,00GG,Central Services - Trading Services,Supplies And Services - Communications & Computing    ,04/12/2017,CA69719         ,593.84,Revenue,CRD62269,Xma Ltd                                 
Shropshire,00GG,Children's and Education Services - Early Years,Supplies And Services - Travel Expenses Etc.          ,05/12/2017,SC 10           ,800.00,Revenue,CRT03757,A2E First Aid Training                  
Shropshire,00GG,Children's and Education Services - Social Care and Safeguards Family Support Services,Third Party Payments - Private Contractors           ,05/12/2017,R81IN1/00013287 ,"124,124.66",Revenue,CRD68172,Action For Children                     
Shropshire,00GG,Adult Social Care - Older people (aged 65 or over) including older mentally ill,Third Party Payments - Private Contractors           ,05/12/2017,427,"1,699.52",Revenue,CRT01442,Affinity Homecare Shrewsbury Limited    
Shropshire,00GG,Adult Social Care - Adults aged under 65 with learning disabilities,Third Party Payments - Private Contractors           ,05/12/2017,51,598.00,Revenue,CRD94471,Alan'S Cab                              
Shropshire,00GG,"Cultural, Environmental, Regulatory and Planning Services  - Culture and heritage",Supplies And Services - Miscellaneous Expenses        ,05/12/2017,SC002NOVEMBER   ,"1,458.33",Revenue,CRD82981,Albrighton Parish Council               
Shropshire,00GG,"Cultural, Environmental, Regulatory and Planning Services  - Economic Development",Supplies And Services - Miscellaneous Expenses        ,05/12/2017,INV-17299       ,995.00,Revenue,CRD63978,Alcium Software Ltd                     
Shropshire,00GG,Children's and Education Services  - School and Pupil Support,Transport Related - Contracts                     ,05/12/2017,X11707236OCT17  ,"2,370.00",Revenue,CRD94294,All Aboard Shropshire                   
Shropshire,00GG,Adult Social Care - Older people (aged 65 or over) including older mentally ill,Third Party Payments - Private Contractors           ,05/12/2017,353/0400016472  ,629.86,Revenue,CRD00422,Allied Healthcare Group Ltd             
Shropshire,00GG,None SeRCOP - Capital,Contingency/Other Capital - Capital - Construction/Conver ,05/12/2017,2017/19361      ,"13,618.44",Capital,CRD81723,Alun Griffiths (Contractor) Ltd         
Shropshire,00GG,Adult Social Care - Other adult social care - other,Third Party Payments - Private Contractors           ,05/12/2017,ARLETHOUSE      ,"2,400.00",Revenue,HOM01932,Areley House                            
Shropshire,00GG,Highways and Transport Services - Public Transport,Supplies And Services - Grants & Subscriptions        ,05/12/2017,OS0576OCT17     ,"30,955.18",Revenue,CRD10149,Arriva Midlands  Ltd                    
Shropshire,00GG,Highways and Transport Services - Public Transport,Supplies And Services - Grants & Subscriptions        ,05/12/2017,SY0096OCT17     ,"21,114.24",Revenue,CRD10149,Arriva Midlands  Ltd                    
Shropshire,00GG,Highways and Transport Services - Public Transport,Supplies And Services - Grants & Subscriptions        ,05/12/2017,WH0511OCT17     ,"33,222.45",Revenue,CRD10149,Arriva Midlands  Ltd                    
Shropshire,00GG,None SeRCOP - Capital,Contingency/Other Capital - Capital - Construction/Conver ,05/12/2017,3136,"1,700.00",Capital,STX00376,Asset Surfacing Ltd                     
Shropshire,00GG,None SeRCOP - Capital,Contingency/Other Capital - Capital - Construction/Conver ,05/12/2017,3136,"4,005.00",Capital,STX00376,Asset Surfacing Ltd                     
Shropshire,00GG,"Cultural, Environmental, Regulatory and Planning Services  - Culture and heritage",Supplies And Services - Equipt.  Furn. & Materials    ,05/12/2017,2296006,877.26,Revenue,CRD60214,Bertram Trading Limited                 
Shropshire,00GG,Adult Social Care - Adults aged under 65 with mental health needs,Third Party Payments - Private Contractors           ,05/12/2017,5353,"2,938.80",Revenue,CRD49164,Bethphage Great Britain                 
Shropshire,00GG,Adult Social Care - Adults aged under 65 with mental health needs,Third Party Payments - Private Contractors           ,05/12/2017,5354,"21,842.70",Revenue,CRD49164,Bethphage Great Britain                 
Shropshire,00GG,Adult Social Care - Adults aged under 65 with mental health needs,Third Party Payments - Private Contractors           ,05/12/2017,5361,"13,925.10",Revenue,CRD49164,Bethphage Great Britain                 
Shropshire,00GG,Adult Social Care - Adults aged under 65 with mental health needs,Third Party Payments - Private Contractors           ,05/12/2017,5362,"15,199.50",Revenue,CRD49164,Bethphage Great Britain                 
Shropshire,00GG,"Cultural, Environmental, Regulatory and Planning Services  - Economic Development",Supplies And Services - Miscellaneous Expenses        ,05/12/2017,1511896,"1,569.60",Revenue,CRD76937,Bevan Brittan Llp Client Account        
Shropshire,00GG,Children's and Education Services - Early Years,Third Party Payments - Other Committees/Establishmts ,05/12/2017,TAYLORLAUT17EFE ,807.30,Revenue,NUS00319,Bojangles Nursery (West Midlands) Ltd   
Shropshire,00GG,Children's and Education Services  - School and Pupil Support,Transport Related - Contracts                     ,05/12/2017,LU07117713OCT17 ,"2,193.00",Revenue,CRD01209,Boultons Of Shropshire Ltd              
Shropshire,00GG,Housing Services - Homelessness,Premises Related - Rents                         ,05/12/2017,5008585ADDNLRENT,628.20,Revenue,RAT00020,Bridgnorth Housing Special Rent         
Shropshire,00GG,Children's and Education Services - Social Care and Safeguards Looked After Children,Third Party Payments - Private Contractors           ,05/12/2017,IL-0013-027868  ,"8,134.71",Revenue,CRT04710,By The Bridge Ltd                       
Shropshire,00GG,Children's and Education Services  - School and Pupil Support,Transport Related - Contracts                     ,05/12/2017,LU01556946OCT17 ,"3,060.00",Revenue,CRT05830,Caradoc Coaches Ltd                     
Shropshire,00GG,Children's and Education Services  - School and Pupil Support,Transport Related - Contracts                     ,05/12/2017,LU07166947OCT17 ,"3,060.00",Revenue,CRT05830,Caradoc Coaches Ltd                     
Shropshire,00GG,Children's and Education Services  - School and Pupil Support,Transport Related - Contracts                     ,05/12/2017,MW10206943OCT17 ,"1,615.00",Revenue,CRT05830,Caradoc Coaches Ltd                     
Shropshire,00GG,Children's and Education Services - Social Care and Safeguards Looked After Children,Third Party Payments - Private Contractors           ,05/12/2017,CN-2151         ,-607.14,Revenue,CRT06117,Care 4 Children Residential Services Ltd
Shropshire,00GG,Children's and Education Services - Social Care and Safeguards Looked After Children,Third Party Payments - Private Contractors           ,05/12/2017,INV-1953        ,"25,499.88",Revenue,CRT06117,Care 4 Children Residential Services Ltd
Shropshire,00GG,Children's and Education Services - Social Care and Safeguards Family Support Services,Third Party Payments - Private Contractors           ,05/12/2017,CR12906         ,"5,000.00",Revenue,CRT03629,Carers Trust 4 All Shropshire           
Shropshire,00GG,Children's and Education Services  - School and Pupil Support,Transport Related - Contracts                     ,05/12/2017,X116218237OCT17 ,"1,400.00",Revenue,CRD68272,Central Taxis Ltd T/A Go Carz           
Shropshire,00GG,Children's and Education Services  - School and Pupil Support,Transport Related - Contracts                     ,05/12/2017,X116908276OCT17 ,918.00,Revenue,CRD68272,Central Taxis Ltd T/A Go Carz           
Shropshire,00GG,"Cultural, Environmental, Regulatory and Planning Services  - Development Control",Supplies And Services - Miscellaneous Expenses        ,05/12/2017,329,"3,950.00",Revenue,EMO00030,Christian Hawley                        
Shropshire,00GG,Adult Social Care - Adults aged under 65 with physical disability or sensory impairment,Supplies And Services - Services/Allowances           ,05/12/2017,170887,12.50,Revenue,CRD73259,Clofield Ltd                            
Shropshire,00GG,Adult Social Care - Adults aged under 65 with physical disability or sensory impairment,Supplies And Services - Services/Allowances           ,05/12/2017,170887,30.04,Revenue,CRD73259,Clofield Ltd                            
Shropshire,00GG,Adult Social Care - Adults aged under 65 with physical disability or sensory impairment,Supplies And Services - Services/Allowances           ,05/12/2017,170887,110.97,Revenue,CRD73259,Clofield Ltd                            
Shropshire,00GG,Adult Social Care - Adults aged under 65 with physical disability or sensory impairment,Supplies And Services - Services/Allowances           ,05/12/2017,170887,135.90,Revenue,CRD73259,Clofield Ltd                            
Shropshire,00GG,Adult Social Care - Adults aged under 65 with physical disability or sensory impairment,Supplies And Services - Services/Allowances           ,05/12/2017,170887,224.97,Revenue,CRD73259,Clofield Ltd                            
Shropshire,00GG,Children's and Education Services - Early Years,Third Party Payments - Other Committees/Establishmts ,05/12/2017,AUTUMN17 ACTUAL ,"3,720.00",Revenue,NUS00538,Club 0-14 Limited                       
Shropshire,00GG,Children's and Education Services - Early Years,Third Party Payments - Other Committees/Establishmts ,05/12/2017,AUTUMN17 ACTUAL ,"5,967.00",Revenue,NUS00538,Club 0-14 Limited                       
Shropshire,00GG,None SeRCOP - Capital,Contingency/Other Capital - Capital - Construction/Conver ,05/12/2017,17-100051       ,"1,933.30",Capital,CRD02106,Cooper & Williams Ltd                   
Shropshire,00GG,None SeRCOP - Balance Sheet,Holding Accounts - Holding Accounts              ,05/12/2017,C110058060000D  ,526.19,Revenue,ASC00005,Council Tax Refunds-Bacs                
Shropshire,00GG,None SeRCOP - Balance Sheet,Holding Accounts - Holding Accounts              ,05/12/2017,C115006279000   ,700.99,Revenue,ASC00005,Council Tax Refunds-Bacs                
Shropshire,00GG,None SeRCOP - Balance Sheet,Holding Accounts - Holding Accounts              ,05/12/2017,C115012067000   ,"1,507.09",Revenue,ASC00005,Council Tax Refunds-Bacs                
Shropshire,00GG,None SeRCOP - Balance Sheet,Holding Accounts - Holding Accounts              ,05/12/2017,C120013722000   ,507.96,Revenue,ASC00005,Council Tax Refunds-Bacs                
Shropshire,00GG,None SeRCOP - Balance Sheet,Holding Accounts - Holding Accounts              ,05/12/2017,C120082381000   ,"1,270.81",Revenue,ASC00005,Council Tax Refunds-Bacs                
Shropshire,00GG,None SeRCOP - Balance Sheet,Holding Accounts - Holding Accounts              ,05/12/2017,C120129107000   ,"1,652.13",Revenue,ASC00005,Council Tax Refunds-Bacs                
Shropshire,00GG,None SeRCOP - Balance Sheet,Holding Accounts - Holding Accounts              ,05/12/2017,C130333364000   ,"5,673.14",Revenue,ASC00005,Council Tax Refunds-Bacs                
Shropshire,00GG,None SeRCOP - Balance Sheet,Holding Accounts - Holding Accounts              ,05/12/2017,C160000099788   ,679.02,Revenue,ASC00005,Council Tax Refunds-Bacs                
Shropshire,00GG,None SeRCOP - Balance Sheet,Holding Accounts - Holding Accounts              ,05/12/2017,C160000148157   ,905.29,Revenue,ASC00005,Council Tax Refunds-Bacs                
Shropshire,00GG,None SeRCOP - Balance Sheet,Holding Accounts - Holding Accounts              ,05/12/2017,C160000169128   ,692.95,Revenue,ASC00005,Council Tax Refunds-Bacs                
Shropshire,00GG,None SeRCOP - Balance Sheet,Holding Accounts - Holding Accounts              ,05/12/2017,C160000180688   ,"1,105.95",Revenue,ASC00005,Council Tax Refunds-Bacs                
Shropshire,00GG,None SeRCOP - Balance Sheet,Holding Accounts - Holding Accounts              ,05/12/2017,C160000202327   ,864.87,Revenue,ASC00005,Council Tax Refunds-Bacs                
Shropshire,00GG,None SeRCOP - Balance Sheet,Holding Accounts - Holding Accounts              ,05/12/2017,C160000206827   ,695.98,Revenue,ASC00005,Council Tax Refunds-Bacs                
Shropshire,00GG,None SeRCOP - Balance Sheet,Holding Accounts - Holding Accounts              ,05/12/2017,C160000209281   ,638.58,Revenue,ASC00005,Council Tax Refunds-Bacs                
Shropshire,00GG,None SeRCOP - Balance Sheet,Holding Accounts - Holding Accounts              ,05/12/2017,C160000225991   ,792.11,Revenue,ASC00005,Council Tax Refunds-Bacs                
Shropshire,00GG,None SeRCOP - Balance Sheet,Holding Accounts - Holding Accounts              ,05/12/2017,C160000241499   ,631.15,Revenue,ASC00005,Council Tax Refunds-Bacs                
Shropshire,00GG,None SeRCOP - Balance Sheet,Holding Accounts - Holding Accounts              ,05/12/2017,C180032907000D  ,"2,722.01",Revenue,ASC00005,Council Tax Refunds-Bacs                
Shropshire,00GG,Adult Social Care - Adults aged under 65 with physical disability or sensory impairment,Third Party Payments - Private Contractors           ,05/12/2017,01J604749       ,"22,285.29",Revenue,HOM00644,Coverage Care Ltd                       
Shropshire,00GG,Children's and Education Services - Adult and community learning,Supplies And Services - Printing & Stationery         ,05/12/2017,CUKI0013338     ,800.00,Revenue,CRD95266,Crisis Prevention Institute             
Shropshire,00GG,Children's and Education Services - Adult and community learning,Supplies And Services - Miscellaneous Expenses        ,05/12/2017,801,550.00,Revenue,CRT00469,Dementia Pathfinders Cic                
Shropshire,00GG,Adult Social Care - Adults aged under 65 with learning disabilities,Third Party Payments - Private Contractors           ,05/12/2017,5382,"12,083.00",Revenue,CRD74217,Derwen College                          
Shropshire,00GG,Children's and Education Services  - School and Pupil Support,Transport Related - Contracts                     ,05/12/2017,BR10112477OCT17 ,"1,005.00",Revenue,CRD03156,Diamond Cars (Telford) Limited          
Shropshire,00GG,Children's and Education Services  - School and Pupil Support,Transport Related - Contracts                     ,05/12/2017,SY10252357SEP17 ,"1,900.00",Revenue,CRD03156,Diamond Cars (Telford) Limited          
Shropshire,00GG,Children's and Education Services  - Home to College Transport,Transport Related - Contracts                     ,05/12/2017,X61725OCT17     ,671.00,Revenue,CRD81256,E J Griffiths                           
Shropshire,00GG,Children's and Education Services - Early Years,Third Party Payments - Other Committees/Establishmts ,05/12/2017,DONNELLYAAUT17  ,624.96,Revenue,NUS00119,Frankwell Tots To Twelves               
Shropshire,00GG,Central Services - Trading Services,Transport Related - Direct Transport Costs        ,05/12/2017,D1710870        ,"1,730.94",Revenue,CRT03138,Furrows Ltd - Oswestry                  
Shropshire,00GG,None SeRCOP - Capital,Contingency/Other Capital - Capital - Construction/Conver ,05/12/2017,10451,836.00,Capital,CRT01901,Graham Flooring & Cladding Ltd          
Shropshire,00GG,Highways and Transport Services - Management & Support Services,Transport Related - Direct Transport Costs        ,05/12/2017,23502424,572.04,Revenue,CRD64100,Greenhous Commercials Ltd               
Shropshire,00GG,"Cultural, Environmental, Regulatory and Planning Services  - Development Control",Supplies And Services - Miscellaneous Expenses        ,05/12/2017,569,"1,250.00",Revenue,CRT05950,Hashi Mohamed                           
Shropshire,00GG,Adult Social Care - Adults aged under 65 with physical disability or sensory impairment,Third Party Payments - Private Contractors           ,05/12/2017,9700,"2,468.60",Revenue,CRD30349,Headway Shropshire                      
Shropshire,00GG,Adult Social Care - Adults aged under 65 with physical disability or sensory impairment,Third Party Payments - Private Contractors           ,05/12/2017,02J604588       ,"1,339.84",Revenue,CRD30349,Headway Shropshire                      
Shropshire,00GG,Adult Social Care - Adults aged under 65 with physical disability or sensory impairment,Third Party Payments - Private Contractors           ,05/12/2017,03J604588       ,"5,479.28",Revenue,CRD30349,Headway Shropshire                      
Shropshire,00GG,Adult Social Care - Adults aged under 65 with mental health needs,Third Party Payments - Private Contractors           ,05/12/2017,05J604588       ,"9,398.71",Revenue,CRD30349,Headway Shropshire                      
Shropshire,00GG,Adult Social Care - Other adult social care - other,Third Party Payments - Private Contractors           ,05/12/2017,06J604588       ,754.72,Revenue,CRD30349,Headway Shropshire                      
Shropshire,00GG,Adult Social Care - Other adult social care - other,Third Party Payments - Private Contractors           ,05/12/2017,07J604588       ,"4,989.75",Revenue,CRD30349,Headway Shropshire                      
Shropshire,00GG,Adult Social Care - Older people (aged 65 or over) including older mentally ill,Third Party Payments - Private Contractors           ,05/12/2017,DB 1            ,"1,547.00",Revenue,CRT03830,Healthcare 1St Choice Ltd               
Shropshire,00GG,Central Services - Trading Services,Employees - Support Staff                 ,05/12/2017,5203,364.00,Revenue,CRD99521,Hw Controls & Assurance Llp             
Shropshire,00GG,Central Services - Trading Services,Employees - Support Staff                 ,05/12/2017,5203,425.00,Revenue,CRD99521,Hw Controls & Assurance Llp             
Shropshire,00GG,Central Services - Trading Services,Employees - Support Staff                 ,05/12/2017,5203,425.00,Revenue,CRD99521,Hw Controls & Assurance Llp             
Shropshire,00GG,Central Services - Trading Services,Employees - Support Staff                 ,05/12/2017,5203,425.00,Revenue,CRD99521,Hw Controls & Assurance Llp             
Shropshire,00GG,Central Services - Trading Services,Employees - Support Staff                 ,05/12/2017,5203,595.00,Revenue,CRD99521,Hw Controls & Assurance Llp             
Shropshire,00GG,Central Services - Trading Services,Employees - Support Staff                 ,05/12/2017,5203,595.00,Revenue,CRD99521,Hw Controls & Assurance Llp             
Shropshire,00GG,Central Services - Trading Services,Employees - Support Staff                 ,05/12/2017,5204,"1,456.00",Revenue,CRD99521,Hw Controls & Assurance Llp             
Shropshire,00GG,Central Services - Trading Services,Employees - Support Staff                 ,05/12/2017,5205,"2,380.00",Revenue,CRD99521,Hw Controls & Assurance Llp             
Shropshire,00GG,Central Services - Trading Services,Employees - Support Staff                 ,05/12/2017,5206,"2,720.00",Revenue,CRD99521,Hw Controls & Assurance Llp             
Shropshire,00GG,Central Services - Trading Services,Employees - Support Staff                 ,05/12/2017,5207,"2,380.00",Revenue,CRD99521,Hw Controls & Assurance Llp             
Shropshire,00GG,Central Services - Trading Services,Employees - Support Staff                 ,05/12/2017,5208,"1,700.00",Revenue,CRD99521,Hw Controls & Assurance Llp             
Shropshire,00GG,Central Services - Trading Services,Employees - Support Staff                 ,05/12/2017,5209,"2,720.00",Revenue,CRD99521,Hw Controls & Assurance Llp             
Shropshire,00GG,Central Services - Trading Services,Employees - Support Staff                 ,05/12/2017,5210,"2,080.00",Revenue,CRD99521,Hw Controls & Assurance Llp             
Shropshire,00GG,"Cultural, Environmental, Regulatory and Planning Services  - Development Control",Supplies And Services - Equipt.  Furn. & Materials    ,05/12/2017,7018110,950.00,Revenue,CRD86413,Idox Software Limited                   
Shropshire,00GG,"Cultural, Environmental, Regulatory and Planning Services  - Agricultural & Fisheries Services",Premises Related - Repair & Maint. General       ,05/12/2017,2356,997.13,Revenue,STX00012,J Rogers & Sons                         
Shropshire,00GG,"Cultural, Environmental, Regulatory and Planning Services  - Agricultural & Fisheries Services",Premises Related - Repair & Maint. General       ,05/12/2017,2356,997.13,Revenue,STX00012,J Rogers & Sons                         
Shropshire,00GG,"Cultural, Environmental, Regulatory and Planning Services  - Agricultural & Fisheries Services",Premises Related - Repair & Maint. General       ,05/12/2017,2356,"4,690.00",Revenue,STX00012,J Rogers & Sons                         
Shropshire,00GG,"Cultural, Environmental, Regulatory and Planning Services  - Agricultural & Fisheries Services",Premises Related - Repair & Maint. General       ,05/12/2017,2356,"4,690.00",Revenue,STX00012,J Rogers & Sons                         
Shropshire,00GG,"Cultural, Environmental, Regulatory and Planning Services  - Culture and heritage",Employees - Indirect Employee Expenses    ,05/12/2017,3RD NOVEMBER    ,"1,000.00",Revenue,EMO00002,Jamila Thomas                           
Shropshire,00GG,Children's and Education Services - Early Years,Third Party Payments - Other Committees/Establishmts ,05/12/2017,RIMMEREAUT17EFE ,807.30,Revenue,NUS00197,Kidszone                                
Shropshire,00GG,Children's and Education Services - Early Years,Third Party Payments - Other Committees/Establishmts ,05/12/2017,WARRENKAUT1724U ,520.80,Revenue,NUS00058,Kingfisher Nursery School               
Shropshire,00GG,Children's and Education Services  - School and Pupil Support,Transport Related - Contracts                     ,05/12/2017,BA10043954OCT17 ,"2,688.00",Revenue,CRD09389,Lakeside Coaches Ltd                    
Shropshire,00GG,Children's and Education Services  - School and Pupil Support,Transport Related - Contracts                     ,05/12/2017,BA12613953OCT17 ,"2,800.00",Revenue,CRD09389,Lakeside Coaches Ltd                    
Shropshire,00GG,Children's and Education Services  - School and Pupil Support,Transport Related - Contracts                     ,05/12/2017,WE10603965OCT17 ,"2,516.00",Revenue,CRD09389,Lakeside Coaches Ltd                    
Shropshire,00GG,None SeRCOP - Capital,Contingency/Other Capital - Capital - Plant  Equipt & Furn,05/12/2017,20419,"28,730.00",Capital,CRT05911,Liquidlogic Ltd                         
Shropshire,00GG,None SeRCOP - Capital,Contingency/Other Capital - Capital - Plant  Equipt & Furn,05/12/2017,20420,"51,037.80",Capital,CRT05911,Liquidlogic Ltd                         
Shropshire,00GG,None SeRCOP - Capital,Contingency/Other Capital - Capital - Plant  Equipt & Furn,05/12/2017,20443,"3,968.00",Capital,CRT05911,Liquidlogic Ltd                         
Shropshire,00GG,"Cultural, Environmental, Regulatory and Planning Services  - Culture and heritage",Premises Related - R & M Property Policy Group   ,05/12/2017,9748,"1,983.03",Revenue,STX00076,Mant Ltd                                
Shropshire,00GG,Children's and Education Services - Directorate,Supplies And Services - Miscellaneous Expenses        ,05/12/2017,PP10709/TWJ     ,"1,200.00",Revenue,CRD65931,Mccartneys Llp Office A/C               
Shropshire,00GG,Highways and Transport Services - Parking Services,Supplies And Services - Miscellaneous Expenses        ,05/12/2017,I7405761        ,693.00,Revenue,CRD10463,Midland News Association Ltd            
Shropshire,00GG,Highways and Transport Services - Parking Services,Supplies And Services - Miscellaneous Expenses        ,05/12/2017,I7408868        ,609.84,Revenue,CRD10463,Midland News Association Ltd            
Shropshire,00GG,Highways and Transport Services - Parking Services,Supplies And Services - Miscellaneous Expenses        ,05/12/2017,I7408995        ,693.00,Revenue,CRD10463,Midland News Association Ltd            
Shropshire,00GG,Environment & Regulatory - Regulatory Services,Supplies And Services - Miscellaneous Expenses        ,05/12/2017,I7411159        ,"2,439.36",Revenue,CRD10463,Midland News Association Ltd            
Shropshire,00GG,Highways and Transport Services - Parking Services,Supplies And Services - Miscellaneous Expenses        ,05/12/2017,I7411182        ,498.96,Revenue,CRD10463,Midland News Association Ltd            
Shropshire,00GG,Adult Social Care - Adults aged under 65 with physical disability or sensory impairment,Third Party Payments - Private Contractors           ,05/12/2017,151016673,715.00,Revenue,CRD75794,Mount House (I)                         
Shropshire,00GG,Children's and Education Services - Early Years,Third Party Payments - Other Committees/Establishmts ,05/12/2017,VAUGHANDAUT1724U,"1,026.72",Revenue,NUS00096,Mount Lane Day Nursery                  
Shropshire,00GG,Children's and Education Services - Social Care and Safeguards Looked After Children,Third Party Payments - Private Contractors           ,05/12/2017,SI-643          ,"3,140.70",Revenue,CRT03484,New Chapters Fostercare                 
Shropshire,00GG,Children's and Education Services - Social Care and Safeguards Looked After Children,Third Party Payments - Private Contractors           ,05/12/2017,SI-644          ,"3,621.60",Revenue,CRT03484,New Chapters Fostercare                 
Shropshire,00GG,Children's and Education Services - Social Care and Safeguards Looked After Children,Third Party Payments - Private Contractors           ,05/12/2017,9747,"5,987.43",Revenue,CRD98442,New Focas                               
Shropshire,00GG,Children's and Education Services - Social Care and Safeguards Looked After Children,Third Party Payments - Private Contractors           ,05/12/2017,9748,"5,987.43",Revenue,CRD98442,New Focas                               
Shropshire,00GG,Children's and Education Services - Early Years,Third Party Payments - Other Committees/Establishmts ,05/12/2017,MORRISMAUT1724U ,"1,026.72",Revenue,NUS00349,Newbridge Day Nursery                   
Shropshire,00GG,Adult Social Care - Adults aged under 65 with physical disability or sensory impairment,Third Party Payments - Private Contractors           ,05/12/2017,DBOCT17         ,"1,333.44",Revenue,CRD40942,Normanton Residential Home              
Shropshire,00GG,Children's and Education Services - Early Years,Third Party Payments - Other Committees/Establishmts ,05/12/2017,AUTUMN17ADDAR&LP,627.93,Revenue,NUS00048,Oswestry Methodist Pre School           
Shropshire,00GG,Children's and Education Services - Early Years,Third Party Payments - Other Committees/Establishmts ,05/12/2017,ROBINSONS&SAUT17,620.10,Revenue,NUS00048,Oswestry Methodist Pre School           
Shropshire,00GG,Children's and Education Services - Early Years,Third Party Payments - Other Committees/Establishmts ,05/12/2017,WHITTALLRAUT17  ,"1,614.60",Revenue,NUS00470,Overton Playgroup & Toddlers            
Shropshire,00GG,Children's and Education Services - Social Care and Safeguards Looked After Children,Third Party Payments - Private Contractors           ,05/12/2017,PYP0000009014   ,"3,835.80",Revenue,CRD65897,Prospects For Young People Ltd          
Shropshire,00GG,Children's and Education Services - Social Care and Safeguards Looked After Children,Third Party Payments - Private Contractors           ,05/12/2017,PYP0000009015   ,"3,873.30",Revenue,CRD65897,Prospects For Young People Ltd          
Shropshire,00GG,Adult Social Care - Adults aged under 65 with learning disabilities,Third Party Payments - Private Contractors           ,05/12/2017,QUA168204       ,"4,631.32",Revenue,CRD98167,Quarriers Village                       
Shropshire,00GG,None SeRCOP - Capital,Contingency/Other Capital - Capital - Construction/Conver ,05/12/2017,7554,876.66,Capital,CRD03768,R G Edwards & Co Ltd                    
Shropshire,00GG,None SeRCOP - Capital,Contingency/Other Capital - Capital - Construction/Conver ,05/12/2017,4628,"77,341.00",Capital,CRD40357,R G Stones (Buildings) Ltd              
Shropshire,00GG,"Cultural, Environmental, Regulatory and Planning Services  - Open spaces",Premises Related - Repair & Maint. General       ,05/12/2017,887,165.00,Revenue,STX00560,R Green                                 
Shropshire,00GG,"Cultural, Environmental, Regulatory and Planning Services  - Open spaces",Premises Related - Repair & Maint. General       ,05/12/2017,887,564.00,Revenue,STX00560,R Green                                 
Shropshire,00GG,Public Health - Other,Supplies And Services - Equipt.  Furn. & Materials    ,05/12/2017,1,"5,426.00",Revenue,EMO00091,R L Arnold                              
Shropshire,00GG,Public Health - Other,Supplies And Services - Equipt.  Furn. & Materials    ,05/12/2017,3,600.00,Revenue,EMO00091,R L Arnold                              
Shropshire,00GG,None SeRCOP - Capital,Contingency/Other Capital - Capital - Exp On Grants & Loan,05/12/2017,4,"5,331.41",Capital,TOP29473,Redacted - Personal Information
Shropshire,00GG,"Cultural, Environmental, Regulatory and Planning Services  - Open spaces",Premises Related - Repair & Maint. General       ,05/12/2017,506137,340.00,Revenue,CRT04330,Robert Lee (Plant) Ltd                  
Shropshire,00GG,"Cultural, Environmental, Regulatory and Planning Services  - Open spaces",Premises Related - Repair & Maint. General       ,05/12/2017,506137,"1,300.00",Revenue,CRT04330,Robert Lee (Plant) Ltd                  
Shropshire,00GG,Central Services - Trading Services,Supplies And Services - Communications & Computing    ,05/12/2017,9055454783,419.31,Revenue,CRD89440,Royal Mail Group Ltd                    
Shropshire,00GG,Central Services - Trading Services,Supplies And Services - Communications & Computing    ,05/12/2017,9055456033,0.38,Revenue,CRD89440,Royal Mail Group Ltd                    
Shropshire,00GG,Central Services - Trading Services,Supplies And Services - Communications & Computing    ,05/12/2017,9055456033,0.38,Revenue,CRD89440,Royal Mail Group Ltd                    
Shropshire,00GG,Central Services - Trading Services,Supplies And Services - Communications & Computing    ,05/12/2017,9055456033,0.38,Revenue,CRD89440,Royal Mail Group Ltd                    
Shropshire,00GG,Central Services - Trading Services,Supplies And Services - Communications & Computing    ,05/12/2017,9055456033,0.38,Revenue,CRD89440,Royal Mail Group Ltd                    
Shropshire,00GG,Central Services - Trading Services,Supplies And Services - Communications & Computing    ,05/12/2017,9055456033,0.38,Revenue,CRD89440,Royal Mail Group Ltd                    
Shropshire,00GG,Central Services - Trading Services,Supplies And Services - Communications & Computing    ,05/12/2017,9055456033,0.54,Revenue,CRD89440,Royal Mail Group Ltd                    
Shropshire,00GG,Central Services - Trading Services,Supplies And Services - Communications & Computing    ,05/12/2017,9055456033,0.66,Revenue,CRD89440,Royal Mail Group Ltd                    
Shropshire,00GG,Central Services - Trading Services,Supplies And Services - Communications & Computing    ,05/12/2017,9055456033,0.76,Revenue,CRD89440,Royal Mail Group Ltd                    
Shropshire,00GG,Central Services - Trading Services,Supplies And Services - Communications & Computing    ,05/12/2017,9055456033,0.83,Revenue,CRD89440,Royal Mail Group Ltd                    
Shropshire,00GG,Central Services - Trading Services,Supplies And Services - Communications & Computing    ,05/12/2017,9055456033,0.93,Revenue,CRD89440,Royal Mail Group Ltd                    
Shropshire,00GG,Central Services - Trading Services,Supplies And Services - Communications & Computing    ,05/12/2017,9055456033,0.93,Revenue,CRD89440,Royal Mail Group Ltd                    
Shropshire,00GG,Central Services - Trading Services,Supplies And Services - Communications & Computing    ,05/12/2017,9055456033,1.08,Revenue,CRD89440,Royal Mail Group Ltd                    
Shropshire,00GG,Central Services - Trading Services,Supplies And Services - Communications & Computing    ,05/12/2017,9055456033,1.69,Revenue,CRD89440,Royal Mail Group Ltd                    
Shropshire,00GG,Central Services - Trading Services,Supplies And Services - Communications & Computing    ,05/12/2017,9055456033,1.86,Revenue,CRD89440,Royal Mail Group Ltd                    
Shropshire,00GG,Central Services - Trading Services,Supplies And Services - Communications & Computing    ,05/12/2017,9055456033,2.21,Revenue,CRD89440,Royal Mail Group Ltd                    
Shropshire,00GG,Central Services - Trading Services,Supplies And Services - Communications & Computing    ,05/12/2017,9055456033,2.27,Revenue,CRD89440,Royal Mail Group Ltd                    
Shropshire,00GG,Central Services - Trading Services,Supplies And Services - Communications & Computing    ,05/12/2017,9055456033,2.79,Revenue,CRD89440,Royal Mail Group Ltd                    
Shropshire,00GG,Central Services - Trading Services,Supplies And Services - Communications & Computing    ,05/12/2017,9055456033,2.99,Revenue,CRD89440,Royal Mail Group Ltd                    
Shropshire,00GG,Central Services - Trading Services,Supplies And Services - Communications & Computing    ,05/12/2017,9055456033,3.30,Revenue,CRD89440,Royal Mail Group Ltd                    
Shropshire,00GG,Central Services - Trading Services,Supplies And Services - Communications & Computing    ,05/12/2017,9055456033,3.70,Revenue,CRD89440,Royal Mail Group Ltd                    
Shropshire,00GG,Central Services - Trading Services,Supplies And Services - Communications & Computing    ,05/12/2017,9055456033,4.43,Revenue,CRD89440,Royal Mail Group Ltd                    
Shropshire,00GG,Central Services - Trading Services,Supplies And Services - Communications & Computing    ,05/12/2017,9055456033,5.32,Revenue,CRD89440,Royal Mail Group Ltd                    
Shropshire,00GG,Central Services - Trading Services,Supplies And Services - Communications & Computing    ,05/12/2017,9055456033,5.56,Revenue,CRD89440,Royal Mail Group Ltd                    
Shropshire,00GG,Central Services - Trading Services,Supplies And Services - Communications & Computing    ,05/12/2017,9055456033,5.56,Revenue,CRD89440,Royal Mail Group Ltd                    
Shropshire,00GG,Central Services - Trading Services,Supplies And Services - Communications & Computing    ,05/12/2017,9055456033,5.97,Revenue,CRD89440,Royal Mail Group Ltd                    
Shropshire,00GG,Central Services - Trading Services,Supplies And Services - Communications & Computing    ,05/12/2017,9055456033,6.46,Revenue,CRD89440,Royal Mail Group Ltd                    
Shropshire,00GG,Central Services - Trading Services,Supplies And Services - Communications & Computing    ,05/12/2017,9055456033,9.12,Revenue,CRD89440,Royal Mail Group Ltd                    
Shropshire,00GG,Central Services - Trading Services,Supplies And Services - Communications & Computing    ,05/12/2017,9055456033,10.26,Revenue,CRD89440,Royal Mail Group Ltd                    
Shropshire,00GG,Central Services - Trading Services,Supplies And Services - Communications & Computing    ,05/12/2017,9055456033,13.29,Revenue,CRD89440,Royal Mail Group Ltd                    
Shropshire,00GG,Central Services - Trading Services,Supplies And Services - Communications & Computing    ,05/12/2017,9055456033,17.42,Revenue,CRD89440,Royal Mail Group Ltd                    
Shropshire,00GG,Central Services - Trading Services,Supplies And Services - Communications & Computing    ,05/12/2017,9055456033,18.24,Revenue,CRD89440,Royal Mail Group Ltd                    
Shropshire,00GG,Central Services - Trading Services,Supplies And Services - Communications & Computing    ,05/12/2017,9055456033,18.24,Revenue,CRD89440,Royal Mail Group Ltd                    
Shropshire,00GG,Central Services - Trading Services,Supplies And Services - Communications & Computing    ,05/12/2017,9055456033,19.25,Revenue,CRD89440,Royal Mail Group Ltd                    
Shropshire,00GG,Central Services - Trading Services,Supplies And Services - Communications & Computing    ,05/12/2017,9055456033,21.66,Revenue,CRD89440,Royal Mail Group Ltd                    
Shropshire,00GG,Central Services - Trading Services,Supplies And Services - Communications & Computing    ,05/12/2017,9055456033,23.90,Revenue,CRD89440,Royal Mail Group Ltd                    
Shropshire,00GG,Central Services - Trading Services,Supplies And Services - Communications & Computing    ,05/12/2017,9055456033,23.94,Revenue,CRD89440,Royal Mail Group Ltd                    
Shropshire,00GG,Central Services - Trading Services,Supplies And Services - Communications & Computing    ,05/12/2017,9055456033,27.19,Revenue,CRD89440,Royal Mail Group Ltd                    
Shropshire,00GG,Central Services - Trading Services,Supplies And Services - Communications & Computing    ,05/12/2017,9055456033,29.33,Revenue,CRD89440,Royal Mail Group Ltd                    
Shropshire,00GG,Central Services - Trading Services,Supplies And Services - Communications & Computing    ,05/12/2017,9055456033,39.52,Revenue,CRD89440,Royal Mail Group Ltd                    
Shropshire,00GG,Central Services - Trading Services,Supplies And Services - Communications & Computing    ,05/12/2017,9055456033,48.72,Revenue,CRD89440,Royal Mail Group Ltd                    
Shropshire,00GG,Central Services - Trading Services,Supplies And Services - Communications & Computing    ,05/12/2017,9055456033,50.35,Revenue,CRD89440,Royal Mail Group Ltd                    
Shropshire,00GG,Central Services - Trading Services,Supplies And Services - Communications & Computing    ,05/12/2017,9055456033,57.38,Revenue,CRD89440,Royal Mail Group Ltd                    
Shropshire,00GG,Central Services - Trading Services,Supplies And Services - Communications & Computing    ,05/12/2017,9055456033,68.78,Revenue,CRD89440,Royal Mail Group Ltd                    
Shropshire,00GG,Central Services - Trading Services,Supplies And Services - Communications & Computing    ,05/12/2017,9055456033,80.75,Revenue,CRD89440,Royal Mail Group Ltd                    
Shropshire,00GG,Central Services - Trading Services,Supplies And Services - Communications & Computing    ,05/12/2017,9055456033,82.46,Revenue,CRD89440,Royal Mail Group Ltd                    
Shropshire,00GG,Central Services - Trading Services,Supplies And Services - Communications & Computing    ,05/12/2017,9055456033,93.19,Revenue,CRD89440,Royal Mail Group Ltd                    
Shropshire,00GG,Central Services - Trading Services,Supplies And Services - Communications & Computing    ,05/12/2017,9055456033,98.82,Revenue,CRD89440,Royal Mail Group Ltd                    
Shropshire,00GG,Central Services - Trading Services,Supplies And Services - Communications & Computing    ,05/12/2017,9055456033,99.36,Revenue,CRD89440,Royal Mail Group Ltd                    
Shropshire,00GG,Central Services - Trading Services,Supplies And Services - Communications & Computing    ,05/12/2017,9055456033,108.54,Revenue,CRD89440,Royal Mail Group Ltd                    
Shropshire,00GG,Central Services - Trading Services,Supplies And Services - Communications & Computing    ,05/12/2017,9055456033,136.80,Revenue,CRD89440,Royal Mail Group Ltd                    
Shropshire,00GG,Central Services - Trading Services,Supplies And Services - Communications & Computing    ,05/12/2017,9055456033,191.70,Revenue,CRD89440,Royal Mail Group Ltd                    
Shropshire,00GG,Central Services - Trading Services,Supplies And Services - Communications & Computing    ,05/12/2017,9055456033,538.74,Revenue,CRD89440,Royal Mail Group Ltd                    
Shropshire,00GG,Central Services - Trading Services,Supplies And Services - Communications & Computing    ,05/12/2017,9055456033,"1,232.03",Revenue,CRD89440,Royal Mail Group Ltd                    
Shropshire,00GG,Housing Services - Homelessness,Supplies And Services - Miscellaneous Expenses        ,05/12/2017,1971,516.65,Revenue,STX00537,S J Busy Bees Cleaning                  
Shropshire,00GG,Housing Services - Homelessness,Supplies And Services - Miscellaneous Expenses        ,05/12/2017,1980,900.70,Revenue,STX00537,S J Busy Bees Cleaning                  
Shropshire,00GG,Housing Services - Homelessness,Supplies And Services - Miscellaneous Expenses        ,05/12/2017,1986,541.70,Revenue,STX00537,S J Busy Bees Cleaning                  
Shropshire,00GG,"Cultural, Environmental, Regulatory and Planning Services  - Environmental initiatives",Supplies And Services - Miscellaneous Expenses        ,05/12/2017,297,"1,130.00",Revenue,CRD96200,S L Gittoes Forestry                    
Shropshire,00GG,"Cultural, Environmental, Regulatory and Planning Services  - Economic Development",Contingency/Other Capital - Capital - Professional Fees   ,05/12/2017,4000355632,"1,500.00",Revenue,TOP28135,Severn Trent Water Ltd                  
Shropshire,00GG,"Cultural, Environmental, Regulatory and Planning Services  - Culture and heritage",Supplies And Services - Miscellaneous Expenses        ,05/12/2017,29112017,514.00,Revenue,CRD91727,Shrewsbury Orchestral Society           
Shropshire,00GG,"Cultural, Environmental, Regulatory and Planning Services  - Economic Development",Supplies And Services - Miscellaneous Expenses        ,05/12/2017,23892,859.00,Revenue,CRD15945,Shrop Chamber Commerce Trng & Enterprise
Shropshire,00GG,None SeRCOP - Capital,Contingency/Other Capital - Capital - Construction/Conver ,05/12/2017,25699,"3,366.00",Capital,CRD67599,Shropshire Cooling Services Ltd         
Shropshire,00GG,None SeRCOP - Capital,Contingency/Other Capital - Capital - Construction/Conver ,05/12/2017,25700,"1,994.00",Capital,CRD67599,Shropshire Cooling Services Ltd         
Shropshire,00GG,None SeRCOP - Balance Sheet,Current Assets - Government Debtors            ,05/12/2017,JULTOSEP17VAT   ,"134,928.17",Revenue,CRD95107,Shropshire County Pension Fund          
Shropshire,00GG,None SeRCOP - Capital,Contingency/Other Capital - Capital - Construction/Conver ,05/12/2017,761,-533.00,Capital,CRT00039,Shropshire Towns & Rural Housing Ltd    
Shropshire,00GG,None SeRCOP - Capital,Contingency/Other Capital - Capital - Construction/Conver ,05/12/2017,761,290.00,Capital,CRT00039,Shropshire Towns & Rural Housing Ltd    
Shropshire,00GG,None SeRCOP - Capital,Contingency/Other Capital - Capital - Professional Fees   ,05/12/2017,761,438.50,Capital,CRT00039,Shropshire Towns & Rural Housing Ltd    
Shropshire,00GG,None SeRCOP - Capital,Contingency/Other Capital - Capital - Construction/Conver ,05/12/2017,761,885.00,Capital,CRT00039,Shropshire Towns & Rural Housing Ltd    
Shropshire,00GG,None SeRCOP - Capital,Contingency/Other Capital - Capital - Professional Fees   ,05/12/2017,761,975.00,Capital,CRT00039,Shropshire Towns & Rural Housing Ltd    
Shropshire,00GG,None SeRCOP - Capital,Contingency/Other Capital - Capital - Construction/Conver ,05/12/2017,761,"1,000.00",Capital,CRT00039,Shropshire Towns & Rural Housing Ltd    
Shropshire,00GG,None SeRCOP - Capital,Contingency/Other Capital - Capital - Construction/Conver ,05/12/2017,761,"3,119.32",Capital,CRT00039,Shropshire Towns & Rural Housing Ltd    
Shropshire,00GG,None SeRCOP - Capital,Contingency/Other Capital - Capital - Construction/Conver ,05/12/2017,761,"4,522.00",Capital,CRT00039,Shropshire Towns & Rural Housing Ltd    
Shropshire,00GG,None SeRCOP - Capital,Contingency/Other Capital - Capital - Construction/Conver ,05/12/2017,761,"7,639.00",Capital,CRT00039,Shropshire Towns & Rural Housing Ltd    
Shropshire,00GG,Central Services - Trading undertakings,Supplies And Services - Equipt.  Furn. & Materials    ,05/12/2017,A8308272        ,960.00,Revenue,CRD15928,Siemens Financial Services              
Shropshire,00GG,Children's and Education Services - Early Years,Third Party Payments - Other Committees/Establishmts ,05/12/2017,AUT17EFEMCANDCW ,526.50,Revenue,NUS00495,St Martins School                       
Shropshire,00GG,Children's and Education Services - Early Years,Third Party Payments - Other Committees/Establishmts ,05/12/2017,SHAWAAUTUMN17   ,795.60,Revenue,NUS00047,St Winefrides School                    
Shropshire,00GG,Adult Social Care - Older people (aged 65 or over) including older mentally ill,Third Party Payments - Private Contractors           ,05/12/2017,19439,"1,030.56",Revenue,CRD60837,Surecare Shropshire Ltd                 
Shropshire,00GG,Adult Social Care - Older people (aged 65 or over) including older mentally ill,Third Party Payments - Private Contractors           ,05/12/2017,19448,854.28,Revenue,CRD60837,Surecare Shropshire Ltd                 
Shropshire,00GG,Adult Social Care - Older people (aged 65 or over) including older mentally ill,Third Party Payments - Private Contractors           ,05/12/2017,19449,542.40,Revenue,CRD60837,Surecare Shropshire Ltd                 
Shropshire,00GG,Adult Social Care - Older people (aged 65 or over) including older mentally ill,Third Party Payments - Private Contractors           ,05/12/2017,19456,809.08,Revenue,CRD60837,Surecare Shropshire Ltd                 
Shropshire,00GG,Children's and Education Services  - School and Pupil Support,Transport Related - Contracts                     ,05/12/2017,CM103620204OCT17,850.00,Revenue,CRT02385,Swan Cabs Limited                       
Shropshire,00GG,Highways and Transport Services - Management & Support Services,Transport Related - Direct Transport Costs        ,05/12/2017,115660,"1,907.19",Revenue,CRD87519,T J Vickers                             
Shropshire,00GG,Highways and Transport Services - Management & Support Services,Transport Related - Direct Transport Costs        ,05/12/2017,115661,"2,233.10",Revenue,CRD87519,T J Vickers                             
Shropshire,00GG,None SeRCOP - Management & Support Services - Reallocated,Premises Related - Repair &Maint. Grounds        ,05/12/2017,593045,748.00,Revenue,CRD86220,Taybar Limited                          
Shropshire,00GG,Adult Social Care - Adults aged under 65 with learning disabilities,Premises Related - R & M Property Policy Group   ,05/12/2017,11160,744.74,Revenue,STX00297,Taylors Mechanical Ltd                  
Shropshire,00GG,Adult Social Care - Other adult social care - other,Third Party Payments - Private Contractors           ,05/12/2017,107,"1,650.00",Revenue,CRT01506,The Cedars (Springcare)                 
Shropshire,00GG,Adult Social Care - Other adult social care - other,Third Party Payments - Private Contractors           ,05/12/2017,114,990.00,Revenue,CRT01506,The Cedars (Springcare)                 
Shropshire,00GG,Adult Social Care - Other adult social care - other,Third Party Payments - Private Contractors           ,05/12/2017,116,"1,100.00",Revenue,CRT01506,The Cedars (Springcare)                 
Shropshire,00GG,None SeRCOP - Capital,Contingency/Other Capital - Capital - Plant  Equipt & Furn,05/12/2017,74633,"2,472.00",Capital,CRD98525,The School Furniture Company Ltd        
Shropshire,00GG,None SeRCOP - Capital,Contingency/Other Capital - Capital - Plant  Equipt & Furn,05/12/2017,74732,945.00,Capital,CRD98525,The School Furniture Company Ltd        
Shropshire,00GG,None SeRCOP - Capital,Contingency/Other Capital - Capital - Exp On Grants & Loan,05/12/2017,190917,"4,111.80",Capital,CRT06149,Tina Sherwood                           
Shropshire,00GG,None SeRCOP - Capital,Contingency/Other Capital - Capital - Construction/Conver ,05/12/2017,INV02077        ,"6,975.00",Capital,CRT06373,Trueform Engineering Ltd                
Shropshire,00GG,"Cultural, Environmental, Regulatory and Planning Services  - Culture and heritage",Third Party Payments - Private Contractors           ,05/12/2017,V17111221       ,238.00,Revenue,CRD87695,Venners Ltd                             
Shropshire,00GG,"Cultural, Environmental, Regulatory and Planning Services  - Culture and heritage",Third Party Payments - Private Contractors           ,05/12/2017,V17111221       ,416.00,Revenue,CRD87695,Venners Ltd                             
Shropshire,00GG,"Cultural, Environmental, Regulatory and Planning Services  - Agricultural & Fisheries Services",Premises Related - R & M Property Policy Group   ,05/12/2017,25404,"2,710.00",Revenue,STX00001,W T Rowley & Sons                       
Shropshire,00GG,Children's and Education Services - Youth,Premises Related - R & M Property Policy Group   ,05/12/2017,16687,461.11,Revenue,CRD56341,Window & Door Contract Services         
Shropshire,00GG,Central Services - Trading Services,Premises Related - R & M Property Policy Group   ,05/12/2017,16692,659.14,Revenue,CRD56341,Window & Door Contract Services         
Shropshire,00GG,Housing Services - Other council property,Premises Related - Repair & Maint. General       ,05/12/2017,16695,689.15,Revenue,CRD56341,Window & Door Contract Services         
Shropshire,00GG,Highways and Transport Services - Public Transport,Supplies And Services - Grants & Subscriptions        ,05/12/2017,INV3411285      ,"8,500.00",Revenue,CRD51365,Wrexham County Borough Council          
Shropshire,00GG,Central Services - Trading Services,Supplies And Services - Communications & Computing    ,05/12/2017,CA76900         ,593.84,Revenue,CRD62269,Xma Ltd                                 
Shropshire,00GG,Highways and Transport Services - Public Transport,Supplies And Services - Grants & Subscriptions        ,05/12/2017,LU731OCT17      ,"3,059.15",Revenue,CRD18382,Yarranton Bros Ltd                      
Shropshire,00GG,Adult Social Care - Adults aged under 65 with physical disability or sensory impairment,Third Party Payments - Private Contractors           ,06/12/2017,01J602970       ,705.70,Revenue,CRD80377,Abbey Care Direct Ltd                   
Shropshire,00GG,Environment & Regulatory - Regulatory Services,Supplies And Services - Miscellaneous Expenses        ,06/12/2017,60382,"1,062.45",Revenue,CRT04341,Als Environmental Limited               
Shropshire,00GG,"Cultural, Environmental, Regulatory and Planning Services  - Culture and heritage",Supplies And Services - Miscellaneous Expenses        ,06/12/2017,9523,"1,183.37",Revenue,CRT01488,Altitude Film Distribution Limited      
Shropshire,00GG,Public Health - Other,Supplies And Services - Grants & Subscriptions        ,06/12/2017,I-170112        ,"2,200.00",Revenue,CRT04518,Assoc Of Directors Of Public Health (Uk)
Shropshire,00GG,Children's and Education Services - Early Years,Supplies And Services - Miscellaneous Expenses        ,06/12/2017,SUSTAINSUPPSUM17,"4,000.00",Revenue,NUS00152,Brockton Pre School                     
Shropshire,00GG,Adult Social Care - Older people (aged 65 or over) including older mentally ill,Third Party Payments - Private Contractors           ,06/12/2017,10069275,652.50,Revenue,CRD97197,Cheshire West Wirral & Shrops Crossroads
Shropshire,00GG,Adult Social Care - Older people (aged 65 or over) including older mentally ill,Third Party Payments - Private Contractors           ,06/12/2017,10069286,"1,261.87",Revenue,CRD97197,Cheshire West Wirral & Shrops Crossroads
Shropshire,00GG,Adult Social Care - Older people (aged 65 or over) including older mentally ill,Third Party Payments - Private Contractors           ,06/12/2017,CCL/14/11/17    ,949.20,Revenue,CRT04961,Cloverley Care Ltd                      
Shropshire,00GG,"Cultural, Environmental, Regulatory and Planning Services  - Culture and heritage",Supplies And Services - Miscellaneous Expenses        ,06/12/2017,10171/DEC17     ,"2,750.00",Revenue,CRD58034,Enterprise South West Shropshire        
Shropshire,00GG,"Cultural, Environmental, Regulatory and Planning Services  - Culture and heritage",Supplies And Services - Miscellaneous Expenses        ,06/12/2017,268,"50,000.00",Revenue,CRD95787,Evolution Productions Ltd               
Shropshire,00GG,None SeRCOP - Capital,Contingency/Other Capital - Capital - Construction/Conver ,06/12/2017,14460,"2,411.38",Capital,CRD77950,Fastrack Maintenance Ltd                
Shropshire,00GG,"Cultural, Environmental, Regulatory and Planning Services  - Development Control",Income - Fees & Charges                ,06/12/2017,17/05331        ,"1,345.00",Revenue,ASC00008,General Sundry - Bacs                   
Shropshire,00GG,None SeRCOP - Balance Sheet,Holding Accounts - Holding Accounts              ,06/12/2017,CIL6410-LP4030  ,882.40,Revenue,ASC00008,General Sundry - Bacs                   
Shropshire,00GG,Central Services - Other Services,Supplies And Services - Miscellaneous Expenses        ,06/12/2017,DG/JG/BOWEN70565,"20,000.00",Revenue,ASC00008,General Sundry - Bacs                   
Shropshire,00GG,Adult Social Care - Other adult social care - other,Income - Fees & Charges                ,06/12/2017,S1/34258 REFUND ,"4,716.13",Revenue,ASC00008,General Sundry - Bacs                   
Shropshire,00GG,Adult Social Care - Adults aged under 65 with learning disabilities,Supplies And Services - Miscellaneous Expenses        ,06/12/2017,1360859,473.60,Revenue,CRT04327,Gowling Wlg (Uk) Llp                    
Shropshire,00GG,Environment & Regulatory - Regulatory Services,Supplies And Services - Services/Allowances           ,06/12/2017,207138,60.24,Revenue,CRT01425,Health & Safety Executive Main Account  
Shropshire,00GG,Environment & Regulatory - Regulatory Services,Supplies And Services - Services/Allowances           ,06/12/2017,207138,"2,989.84",Revenue,CRT01425,Health & Safety Executive Main Account  
Shropshire,00GG,Central Services - Other Services,Premises Related - Repair & Maint. General       ,06/12/2017,539508,221.58,Revenue,CRT03780,Johnsons Moving Services Ltd            
Shropshire,00GG,Central Services - Other Services,Premises Related - Repair & Maint. General       ,06/12/2017,539508,"3,108.83",Revenue,CRT03780,Johnsons Moving Services Ltd            
Shropshire,00GG,Children's and Education Services - Social Care and Safeguards Other,Supplies And Services - Communications & Computing    ,06/12/2017,291117,18.33,Revenue,CRD83622,Lac Team Imprest Acc 
Shropshire,00GG,Children's and Education Services - Social Care and Safeguards Other,Supplies And Services - Miscellaneous Expenses        ,06/12/2017,291117,162.90,Revenue,CRD83622,Lac Team Imprest Acc 
Shropshire,00GG,Children's and Education Services - Social Care and Safeguards Other,Supplies And Services - Miscellaneous Expenses        ,06/12/2017,291117,215.00,Revenue,CRD83622,Lac Team Imprest Acc 
Shropshire,00GG,Children's and Education Services - Social Care and Safeguards Other,Supplies And Services - Miscellaneous Expenses        ,06/12/2017,291117,728.45,Revenue,CRD83622,Lac Team Imprest Acc 
Shropshire,00GG,Environment & Regulatory - Regulatory Services,Supplies And Services - Miscellaneous Expenses        ,06/12/2017,SI-4113         ,840.00,Revenue,EMO00071,Lee Turner Limited                      
Shropshire,00GG,Central Services - Trading Services,Supplies And Services - Miscellaneous Expenses        ,06/12/2017,43039,"-1,198.00",Revenue,CRD11271,Legal & Democratic Servs Imp
Shropshire,00GG,Central Services - Trading Services,Supplies And Services - Printing & Stationery         ,06/12/2017,43039,22.05,Revenue,CRD11271,Legal & Democratic Servs Imp
Shropshire,00GG,Central Services - Trading Services,Supplies And Services - Printing & Stationery         ,06/12/2017,43039,23.92,Revenue,CRD11271,Legal & Democratic Servs Imp
Shropshire,00GG,Central Services - Trading Services,Supplies And Services - Miscellaneous Expenses        ,06/12/2017,43039,37.00,Revenue,CRD11271,Legal & Democratic Servs Imp
Shropshire,00GG,Central Services - Trading Services,Supplies And Services - Miscellaneous Expenses        ,06/12/2017,43039,155.00,Revenue,CRD11271,Legal & Democratic Servs Imp
Shropshire,00GG,Central Services - Trading Services,Supplies And Services - Miscellaneous Expenses        ,06/12/2017,43039,215.00,Revenue,CRD11271,Legal & Democratic Servs Imp
Shropshire,00GG,Central Services - Trading Services,Supplies And Services - Miscellaneous Expenses        ,06/12/2017,43039,355.00,Revenue,CRD11271,Legal & Democratic Servs Imp
Shropshire,00GG,Central Services - Trading Services,Supplies And Services - Miscellaneous Expenses        ,06/12/2017,43039,"2,055.00",Revenue,CRD11271,Legal & Democratic Servs Imp
Shropshire,00GG,Central Services - Trading Services,Supplies And Services - Miscellaneous Expenses        ,06/12/2017,43039,"2,055.00",Revenue,CRD11271,Legal & Democratic Servs Imp
Shropshire,00GG,Central Services - Trading Services,Supplies And Services - Miscellaneous Expenses        ,06/12/2017,43039,"2,055.00",Revenue,CRD11271,Legal & Democratic Servs Imp
Shropshire,00GG,Central Services - Trading Services,Supplies And Services - Miscellaneous Expenses        ,06/12/2017,43039,"2,055.00",Revenue,CRD11271,Legal & Democratic Servs Imp
Shropshire,00GG,None SeRCOP - Capital,Contingency/Other Capital - Capital - Exp On Grants & Loan,06/12/2017,6050003/405     ,427.23,Capital,CRD94263,Mears Group Plc                         
Shropshire,00GG,Central Services - Trading Services,Supplies And Services - Miscellaneous Expenses        ,06/12/2017,MMHA4497/12     ,500.00,Revenue,CRD86012,Meres And Mosses Housing Association    
Shropshire,00GG,Highways and Transport Services - Parking Services,Supplies And Services - Miscellaneous Expenses        ,06/12/2017,I7412344        ,609.84,Revenue,CRD10463,Midland News Association Ltd            
Shropshire,00GG,None SeRCOP - Balance Sheet,Holding Accounts - Holding Accounts              ,06/12/2017,N214468451000   ,"2,022.21",Revenue,ASC00006,Nndr Refunds - Bacs                     
Shropshire,00GG,None SeRCOP - Balance Sheet,Holding Accounts - Holding Accounts              ,06/12/2017,N214486110000D  ,892.53,Revenue,ASC00006,Nndr Refunds - Bacs                     
Shropshire,00GG,None SeRCOP - Balance Sheet,Holding Accounts - Holding Accounts              ,06/12/2017,N240001053000   ,"11,421.13",Revenue,ASC00006,Nndr Refunds - Bacs                     
Shropshire,00GG,None SeRCOP - Balance Sheet,Holding Accounts - Holding Accounts              ,06/12/2017,N250000010214   ,"1,116.64",Revenue,ASC00006,Nndr Refunds - Bacs                     
Shropshire,00GG,None SeRCOP - Balance Sheet,Holding Accounts - Holding Accounts              ,06/12/2017,N250000010789   ,841.27,Revenue,ASC00006,Nndr Refunds - Bacs                     
Shropshire,00GG,None SeRCOP - Balance Sheet,Holding Accounts - Holding Accounts              ,06/12/2017,N250000011443   ,"1,475.64",Revenue,ASC00006,Nndr Refunds - Bacs                     
Shropshire,00GG,None SeRCOP - Balance Sheet,Holding Accounts - Holding Accounts              ,06/12/2017,N250000013935   ,"9,803.84",Revenue,ASC00006,Nndr Refunds - Bacs                     
Shropshire,00GG,None SeRCOP - Balance Sheet,Holding Accounts - Holding Accounts              ,06/12/2017,N250000018982   ,"1,269.78",Revenue,ASC00006,Nndr Refunds - Bacs                     
Shropshire,00GG,None SeRCOP - Balance Sheet,Holding Accounts - Holding Accounts              ,06/12/2017,N250000021196   ,"3,885.05",Revenue,ASC00006,Nndr Refunds - Bacs                     
Shropshire,00GG,None SeRCOP - Balance Sheet,Holding Accounts - Holding Accounts              ,06/12/2017,N250000024445   ,705.15,Revenue,ASC00006,Nndr Refunds - Bacs                     
Shropshire,00GG,None SeRCOP - Balance Sheet,Holding Accounts - Holding Accounts              ,06/12/2017,N250000025745   ,"3,109.86",Revenue,ASC00006,Nndr Refunds - Bacs                     
Shropshire,00GG,Central Services - Trading Services,Supplies And Services - Miscellaneous Expenses        ,06/12/2017,220767,525.00,Revenue,CRT05256,Permanent Futures Ltd                   
Shropshire,00GG,Central Services - Trading Services,Supplies And Services - Miscellaneous Expenses        ,06/12/2017,220768,"11,812.50",Revenue,CRT05256,Permanent Futures Ltd                   
Shropshire,00GG,Central Services - Trading Services,Premises Related - Rents                         ,06/12/2017,4977,"-1,081.24",Revenue,CRT05024,Redacted - Commercial Interest
Shropshire,00GG,None SeRCOP - Balance Sheet,Holding Accounts - Holding Accounts              ,06/12/2017,5007457 131117  ,722.14,Revenue,ASC00007,Rent Refunds - Bacs                     
Shropshire,00GG,Central Services - Trading Services,Premises Related - Grounds Maintenance Costs     ,06/12/2017,STC3145         ,435.00,Revenue,CRD87402,Shrewsbury Town Council                 
Shropshire,00GG,Adult Social Care - Older people (aged 65 or over) including older mentally ill,Third Party Payments - Private Contractors           ,06/12/2017,SCS0155         ,596.64,Revenue,CRT05846,Sinai Care Solutions Ltd                
Shropshire,00GG,Adult Social Care - Older people (aged 65 or over) including older mentally ill,Third Party Payments - Private Contractors           ,06/12/2017,AC1CRE01        ,"-23,398.12",Revenue,CRD95298,Tailored Care Ltd                       
Shropshire,00GG,Adult Social Care - Older people (aged 65 or over) including older mentally ill,Third Party Payments - Private Contractors           ,06/12/2017,ICSBLOCK29OCT17 ,"3,783.35",Revenue,CRD95298,Tailored Care Ltd                       
Shropshire,00GG,Adult Social Care - Older people (aged 65 or over) including older mentally ill,Third Party Payments - Private Contractors           ,06/12/2017,ICSBLOCK29OCT17 ,"3,783.35",Revenue,CRD95298,Tailored Care Ltd                       
Shropshire,00GG,Adult Social Care - Older people (aged 65 or over) including older mentally ill,Third Party Payments - Private Contractors           ,06/12/2017,ICSBLOCK29OCT17 ,"3,783.37",Revenue,CRD95298,Tailored Care Ltd                       
Shropshire,00GG,Adult Social Care - Older people (aged 65 or over) including older mentally ill,Third Party Payments - Private Contractors           ,06/12/2017,ICSBLOCK5NOV17  ,"4,016.01",Revenue,CRD95298,Tailored Care Ltd                       
Shropshire,00GG,Adult Social Care - Older people (aged 65 or over) including older mentally ill,Third Party Payments - Private Contractors           ,06/12/2017,ICSBLOCK5NOV17  ,"4,016.01",Revenue,CRD95298,Tailored Care Ltd                       
Shropshire,00GG,Adult Social Care - Older people (aged 65 or over) including older mentally ill,Third Party Payments - Private Contractors           ,06/12/2017,ICSBLOCK5NOV17  ,"4,016.03",Revenue,CRD95298,Tailored Care Ltd                       
Shropshire,00GG,None SeRCOP - Capital,Contingency/Other Capital - Capital - Exp On Grants & Loan,06/12/2017,154,"3,417.81",Capital,TOP29063,W S Building Services (Shropshire) Ltd  
Shropshire,00GG,"Cultural, Environmental, Regulatory and Planning Services  - Recreation and sport",Premises Related - Water                         ,06/12/2017,5100822,"2,178.23",Revenue,CRT02770,William Brookes Academy Trust           
Shropshire,00GG,"Cultural, Environmental, Regulatory and Planning Services  - Recreation and sport",Premises Related - Repair & Maint. General       ,06/12/2017,5100822,"2,395.83",Revenue,CRT02770,William Brookes Academy Trust           
Shropshire,00GG,"Cultural, Environmental, Regulatory and Planning Services  - Recreation and sport",Premises Related - Energy Costs                  ,06/12/2017,5100822,"4,894.47",Revenue,CRT02770,William Brookes Academy Trust           
Shropshire,00GG,"Cultural, Environmental, Regulatory and Planning Services  - Recreation and sport",Premises Related - Cleaning Costs                ,06/12/2017,5100822,"5,000.00",Revenue,CRT02770,William Brookes Academy Trust           
Shropshire,00GG,"Cultural, Environmental, Regulatory and Planning Services  - Recreation and sport",Premises Related - Rates                         ,06/12/2017,5100822,"5,140.74",Revenue,CRT02770,William Brookes Academy Trust           
Shropshire,00GG,"Cultural, Environmental, Regulatory and Planning Services  - Recreation and sport",Premises Related - Energy Costs                  ,06/12/2017,5100822,"20,533.37",Revenue,CRT02770,William Brookes Academy Trust           
Shropshire,00GG,Adult Social Care - Adults aged under 65 with learning disabilities,Transport Related - Direct Transport Costs        ,07/12/2017,5S10503483OCT17 ,425.00,Revenue,CRD90254,Access Cars Shrewsbury Ltd              
Shropshire,00GG,None SeRCOP - Capital,Contingency/Other Capital - Capital - Exp On Grants & Loan,07/12/2017,21,"165,000.00",Capital,CRT06165,Airband Community Internet              
Shropshire,00GG,Adult Social Care - Older people (aged 65 or over) including older mentally ill,Third Party Payments - Private Contractors           ,07/12/2017,1128,"1,800.00",Revenue,CRT05395,Approved Care And Support               
Shropshire,00GG,Highways and Transport Services - Public Transport,Supplies And Services - Grants & Subscriptions        ,07/12/2017,CONFARENOV17    ,"132,512.31",Revenue,CRD10149,Arriva Midlands  Ltd                    
Shropshire,00GG,Highways and Transport Services - Public Transport,Supplies And Services - Grants & Subscriptions        ,07/12/2017,CONFAREOCT17    ,"132,512.31",Revenue,CRD10149,Arriva Midlands  Ltd                    
Shropshire,00GG,Highways and Transport Services - Public Transport,Supplies And Services - Grants & Subscriptions        ,07/12/2017,CONFARESEP17    ,"132,512.31",Revenue,CRD10149,Arriva Midlands  Ltd                    
Shropshire,00GG,Adult Social Care - Adults aged under 65 with learning disabilities,Transport Related - Direct Transport Costs        ,07/12/2017,3Q1007355OCT17  ,"1,300.00",Revenue,CRD90218,B Khan                                  
Shropshire,00GG,Adult Social Care - Adults aged under 65 with learning disabilities,Transport Related - Direct Transport Costs        ,07/12/2017,4B1094356OCT17  ,980.00,Revenue,CRD90218,B Khan                                  
Shropshire,00GG,"Cultural, Environmental, Regulatory and Planning Services  - Environmental initiatives",Supplies And Services - Miscellaneous Expenses        ,07/12/2017,2409,"1,000.00",Revenue,EMO00048,Ben Osborne Photography Ltd             
Shropshire,00GG,Central Services - Trading undertakings,Supplies And Services - Catering                      ,07/12/2017,77520618,"1,014.71",Revenue,CRD76838,Bidfood                                 
Shropshire,00GG,Central Services - Trading undertakings,Supplies And Services - Catering                      ,07/12/2017,77520645,626.01,Revenue,CRD76838,Bidfood                                 
Shropshire,00GG,Central Services - Trading undertakings,Supplies And Services - Catering                      ,07/12/2017,77520753,12.80,Revenue,CRD76838,Bidfood                                 
Shropshire,00GG,Central Services - Trading undertakings,Supplies And Services - Catering                      ,07/12/2017,77520753,700.62,Revenue,CRD76838,Bidfood                                 
Shropshire,00GG,Central Services - Trading undertakings,Supplies And Services - Catering                      ,07/12/2017,77520762,7.46,Revenue,CRD76838,Bidfood                                 
Shropshire,00GG,Central Services - Trading undertakings,Supplies And Services - Catering                      ,07/12/2017,77520762,669.80,Revenue,CRD76838,Bidfood                                 
Shropshire,00GG,Central Services - Trading undertakings,Supplies And Services - Catering                      ,07/12/2017,77520817,532.64,Revenue,CRD76838,Bidfood                                 
Shropshire,00GG,Central Services - Trading undertakings,Supplies And Services - Catering                      ,07/12/2017,77520833,"1,619.47",Revenue,CRD76838,Bidfood                                 
Shropshire,00GG,Central Services - Trading Services,Supplies And Services - Catering                      ,07/12/2017,77520863,15.78,Revenue,CRD76838,Bidfood                                 
Shropshire,00GG,Central Services - Trading Services,Supplies And Services - Catering                      ,07/12/2017,77520863,596.35,Revenue,CRD76838,Bidfood                                 
Shropshire,00GG,Central Services - Trading undertakings,Supplies And Services - Catering                      ,07/12/2017,77520933,"1,067.28",Revenue,CRD76838,Bidfood                                 
Shropshire,00GG,Central Services - Trading undertakings,Supplies And Services - Catering                      ,07/12/2017,77520949,7.86,Revenue,CRD76838,Bidfood                                 
Shropshire,00GG,Central Services - Trading undertakings,Supplies And Services - Catering                      ,07/12/2017,77520949,737.57,Revenue,CRD76838,Bidfood                                 
Shropshire,00GG,Central Services - Trading undertakings,Supplies And Services - Catering                      ,07/12/2017,77521117,581.91,Revenue,CRD76838,Bidfood                                 
Shropshire,00GG,Central Services - Trading undertakings,Supplies And Services - Catering                      ,07/12/2017,77521131,708.86,Revenue,CRD76838,Bidfood                                 
Shropshire,00GG,Central Services - Trading undertakings,Supplies And Services - Catering                      ,07/12/2017,77521137,15.24,Revenue,CRD76838,Bidfood                                 
Shropshire,00GG,Central Services - Trading undertakings,Supplies And Services - Catering                      ,07/12/2017,77521137,"1,078.32",Revenue,CRD76838,Bidfood                                 
Shropshire,00GG,Central Services - Trading undertakings,Supplies And Services - Catering                      ,07/12/2017,77532520,12.76,Revenue,CRD76838,Bidfood                                 
Shropshire,00GG,Central Services - Trading undertakings,Supplies And Services - Catering                      ,07/12/2017,77532520,518.00,Revenue,CRD76838,Bidfood                                 
Shropshire,00GG,Central Services - Trading undertakings,Supplies And Services - Catering                      ,07/12/2017,77540235,895.94,Revenue,CRD76838,Bidfood                                 
Shropshire,00GG,Central Services - Trading undertakings,Supplies And Services - Catering                      ,07/12/2017,77540277,514.61,Revenue,CRD76838,Bidfood                                 
Shropshire,00GG,Central Services - Trading undertakings,Supplies And Services - Catering                      ,07/12/2017,77540313,24.96,Revenue,CRD76838,Bidfood                                 
Shropshire,00GG,Central Services - Trading undertakings,Supplies And Services - Catering                      ,07/12/2017,77540313,515.54,Revenue,CRD76838,Bidfood                                 
Shropshire,00GG,Central Services - Trading undertakings,Supplies And Services - Catering                      ,07/12/2017,77540378,911.63,Revenue,CRD76838,Bidfood                                 
Shropshire,00GG,Central Services - Trading undertakings,Supplies And Services - Catering                      ,07/12/2017,77540604,46.88,Revenue,CRD76838,Bidfood                                 
Shropshire,00GG,Central Services - Trading undertakings,Supplies And Services - Catering                      ,07/12/2017,77540604,921.49,Revenue,CRD76838,Bidfood                                 
Shropshire,00GG,Central Services - Trading undertakings,Supplies And Services - Catering                      ,07/12/2017,77540642,629.30,Revenue,CRD76838,Bidfood                                 
Shropshire,00GG,Central Services - Trading Services,Supplies And Services - Catering                      ,07/12/2017,77540685,813.06,Revenue,CRD76838,Bidfood                                 
Shropshire,00GG,Central Services - Trading undertakings,Supplies And Services - Catering                      ,07/12/2017,77541013,619.07,Revenue,CRD76838,Bidfood                                 
Shropshire,00GG,Central Services - Trading undertakings,Supplies And Services - Catering                      ,07/12/2017,77542938,510.13,Revenue,CRD76838,Bidfood                                 
Shropshire,00GG,Central Services - Trading undertakings,Supplies And Services - Catering                      ,07/12/2017,77565811,41.69,Revenue,CRD76838,Bidfood                                 
Shropshire,00GG,Central Services - Trading undertakings,Supplies And Services - Catering                      ,07/12/2017,77565811,482.28,Revenue,CRD76838,Bidfood                                 
Shropshire,00GG,Central Services - Trading undertakings,Supplies And Services - Catering                      ,07/12/2017,77567121,14.92,Revenue,CRD76838,Bidfood                                 
Shropshire,00GG,Central Services - Trading undertakings,Supplies And Services - Catering                      ,07/12/2017,77567121,999.59,Revenue,CRD76838,Bidfood                                 
Shropshire,00GG,Central Services - Trading undertakings,Supplies And Services - Catering                      ,07/12/2017,77567139,44.76,Revenue,CRD76838,Bidfood                                 
Shropshire,00GG,Central Services - Trading undertakings,Supplies And Services - Catering                      ,07/12/2017,77567139,"1,104.92",Revenue,CRD76838,Bidfood                                 
Shropshire,00GG,Central Services - Trading undertakings,Supplies And Services - Catering                      ,07/12/2017,77567228,96.94,Revenue,CRD76838,Bidfood                                 
Shropshire,00GG,Central Services - Trading undertakings,Supplies And Services - Catering                      ,07/12/2017,77567228,468.12,Revenue,CRD76838,Bidfood                                 
Shropshire,00GG,Central Services - Trading undertakings,Supplies And Services - Catering                      ,07/12/2017,77567245,41.69,Revenue,CRD76838,Bidfood                                 
Shropshire,00GG,Central Services - Trading undertakings,Supplies And Services - Catering                      ,07/12/2017,77567245,485.89,Revenue,CRD76838,Bidfood                                 
Shropshire,00GG,Central Services - Trading undertakings,Supplies And Services - Catering                      ,07/12/2017,77567255,48.19,Revenue,CRD76838,Bidfood                                 
Shropshire,00GG,Central Services - Trading undertakings,Supplies And Services - Catering                      ,07/12/2017,77567255,695.78,Revenue,CRD76838,Bidfood                                 
Shropshire,00GG,Central Services - Trading undertakings,Supplies And Services - Catering                      ,07/12/2017,77567292,9.34,Revenue,CRD76838,Bidfood                                 
Shropshire,00GG,Central Services - Trading undertakings,Supplies And Services - Catering                      ,07/12/2017,77567292,586.65,Revenue,CRD76838,Bidfood                                 
Shropshire,00GG,Central Services - Trading undertakings,Supplies And Services - Catering                      ,07/12/2017,77567434,41.69,Revenue,CRD76838,Bidfood                                 
Shropshire,00GG,Central Services - Trading undertakings,Supplies And Services - Catering                      ,07/12/2017,77567434,"1,216.08",Revenue,CRD76838,Bidfood                                 
Shropshire,00GG,Central Services - Trading undertakings,Supplies And Services - Catering                      ,07/12/2017,77567453,618.15,Revenue,CRD76838,Bidfood                                 
Shropshire,00GG,Central Services - Trading Services,Supplies And Services - Catering                      ,07/12/2017,77567511,38.40,Revenue,CRD76838,Bidfood                                 
Shropshire,00GG,Central Services - Trading Services,Supplies And Services - Catering                      ,07/12/2017,77567511,597.56,Revenue,CRD76838,Bidfood                                 
Shropshire,00GG,Central Services - Trading undertakings,Supplies And Services - Catering                      ,07/12/2017,77567548,44.76,Revenue,CRD76838,Bidfood                                 
Shropshire,00GG,Central Services - Trading undertakings,Supplies And Services - Catering                      ,07/12/2017,77567548,"1,549.18",Revenue,CRD76838,Bidfood                                 
Shropshire,00GG,Central Services - Trading undertakings,Supplies And Services - Catering                      ,07/12/2017,77567579,7.86,Revenue,CRD76838,Bidfood                                 
Shropshire,00GG,Central Services - Trading undertakings,Supplies And Services - Catering                      ,07/12/2017,77567579,618.05,Revenue,CRD76838,Bidfood                                 
Shropshire,00GG,Central Services - Trading undertakings,Supplies And Services - Catering                      ,07/12/2017,77567597,41.69,Revenue,CRD76838,Bidfood                                 
Shropshire,00GG,Central Services - Trading undertakings,Supplies And Services - Catering                      ,07/12/2017,77567597,657.30,Revenue,CRD76838,Bidfood                                 
Shropshire,00GG,Central Services - Trading undertakings,Supplies And Services - Catering                      ,07/12/2017,77567790,14.92,Revenue,CRD76838,Bidfood                                 
Shropshire,00GG,Central Services - Trading undertakings,Supplies And Services - Catering                      ,07/12/2017,77567790,617.83,Revenue,CRD76838,Bidfood                                 
Shropshire,00GG,Central Services - Trading undertakings,Supplies And Services - Catering                      ,07/12/2017,77577301,7.46,Revenue,CRD76838,Bidfood                                 
Shropshire,00GG,Central Services - Trading undertakings,Supplies And Services - Catering                      ,07/12/2017,77577301,746.34,Revenue,CRD76838,Bidfood                                 
Shropshire,00GG,Central Services - Trading undertakings,Supplies And Services - Catering                      ,07/12/2017,77587565,556.58,Revenue,CRD76838,Bidfood                                 
Shropshire,00GG,Central Services - Trading undertakings,Supplies And Services - Catering                      ,07/12/2017,77587963,826.15,Revenue,CRD76838,Bidfood                                 
Shropshire,00GG,Central Services - Trading undertakings,Supplies And Services - Catering                      ,07/12/2017,77587988,501.19,Revenue,CRD76838,Bidfood                                 
Shropshire,00GG,Central Services - Trading Services,Supplies And Services - Catering                      ,07/12/2017,77588012,21.10,Revenue,CRD76838,Bidfood                                 
Shropshire,00GG,Central Services - Trading Services,Supplies And Services - Catering                      ,07/12/2017,77588012,"1,441.48",Revenue,CRD76838,Bidfood                                 
Shropshire,00GG,Central Services - Trading Services,Supplies And Services - Catering                      ,07/12/2017,77588075,501.43,Revenue,CRD76838,Bidfood                                 
Shropshire,00GG,Central Services - Trading undertakings,Supplies And Services - Catering                      ,07/12/2017,77588152,14.92,Revenue,CRD76838,Bidfood                                 
Shropshire,00GG,Central Services - Trading undertakings,Supplies And Services - Catering                      ,07/12/2017,77588152,536.85,Revenue,CRD76838,Bidfood                                 
Shropshire,00GG,Central Services - Trading undertakings,Supplies And Services - Catering                      ,07/12/2017,77589649,515.31,Revenue,CRD76838,Bidfood                                 
Shropshire,00GG,Central Services - Trading undertakings,Supplies And Services - Catering                      ,07/12/2017,77606341,16.64,Revenue,CRD76838,Bidfood                                 
Shropshire,00GG,Central Services - Trading undertakings,Supplies And Services - Catering                      ,07/12/2017,77606341,545.06,Revenue,CRD76838,Bidfood                                 
Shropshire,00GG,Central Services - Trading undertakings,Supplies And Services - Catering                      ,07/12/2017,77606677,29.84,Revenue,CRD76838,Bidfood                                 
Shropshire,00GG,Central Services - Trading undertakings,Supplies And Services - Catering                      ,07/12/2017,77606677,740.63,Revenue,CRD76838,Bidfood                                 
Shropshire,00GG,Central Services - Trading undertakings,Supplies And Services - Catering                      ,07/12/2017,77606701,27.76,Revenue,CRD76838,Bidfood                                 
Shropshire,00GG,Central Services - Trading undertakings,Supplies And Services - Catering                      ,07/12/2017,77606701,716.61,Revenue,CRD76838,Bidfood                                 
Shropshire,00GG,Central Services - Trading Services,Supplies And Services - Catering                      ,07/12/2017,77606798,635.12,Revenue,CRD76838,Bidfood                                 
Shropshire,00GG,Central Services - Trading undertakings,Supplies And Services - Catering                      ,07/12/2017,77608398,10.88,Revenue,CRD76838,Bidfood                                 
Shropshire,00GG,Central Services - Trading undertakings,Supplies And Services - Catering                      ,07/12/2017,77608398,791.22,Revenue,CRD76838,Bidfood                                 
Shropshire,00GG,Central Services - Trading undertakings,Supplies And Services - Catering                      ,07/12/2017,77608584,735.49,Revenue,CRD76838,Bidfood                                 
Shropshire,00GG,Central Services - Trading undertakings,Supplies And Services - Catering                      ,07/12/2017,77608610,519.44,Revenue,CRD76838,Bidfood                                 
Shropshire,00GG,Central Services - Trading undertakings,Supplies And Services - Catering                      ,07/12/2017,77608623,511.86,Revenue,CRD76838,Bidfood                                 
Shropshire,00GG,Central Services - Trading undertakings,Supplies And Services - Catering                      ,07/12/2017,77608631,741.11,Revenue,CRD76838,Bidfood                                 
Shropshire,00GG,Central Services - Trading undertakings,Supplies And Services - Catering                      ,07/12/2017,77608718,553.01,Revenue,CRD76838,Bidfood                                 
Shropshire,00GG,Central Services - Trading undertakings,Supplies And Services - Catering                      ,07/12/2017,77608838,916.95,Revenue,CRD76838,Bidfood                                 
Shropshire,00GG,Central Services - Trading undertakings,Supplies And Services - Catering                      ,07/12/2017,77608890,66.40,Revenue,CRD76838,Bidfood                                 
Shropshire,00GG,Central Services - Trading undertakings,Supplies And Services - Catering                      ,07/12/2017,77608890,858.21,Revenue,CRD76838,Bidfood                                 
Shropshire,00GG,Central Services - Trading undertakings,Supplies And Services - Catering                      ,07/12/2017,77608927,573.52,Revenue,CRD76838,Bidfood                                 
Shropshire,00GG,Adult Social Care - Older people (aged 65 or over) including older mentally ill,Third Party Payments - Private Contractors           ,07/12/2017,03J604854       ,"1,084.80",Revenue,CRD89010,Bluebird Care (Shropshire Care Ltd)     
Shropshire,00GG,"Cultural, Environmental, Regulatory and Planning Services  - Culture and heritage",Supplies And Services - Catering                      ,07/12/2017,246503,756.89,Revenue,CRD89736,Booker Limited                          
Shropshire,00GG,Children's and Education Services  - School and Pupil Support,Transport Related - Contracts                     ,07/12/2017,MW13027781OCT17 ,"4,136.00",Revenue,CRD01209,Boultons Of Shropshire Ltd              
Shropshire,00GG,None SeRCOP - Capital,Contingency/Other Capital - Capital - Construction/Conver ,07/12/2017,2863,"18,589.00",Capital,CRD81810,Bow Construction Ltd                    
Shropshire,00GG,Adult Social Care - Adults aged under 65 with physical disability or sensory impairment,Third Party Payments - Private Contractors           ,07/12/2017,01J604840       ,725.06,Revenue,CRD63721,C & S Care Services Ltd                 
Shropshire,00GG,Adult Social Care - Older people (aged 65 or over) including older mentally ill,Third Party Payments - Private Contractors           ,07/12/2017,268,906.98,Revenue,CRT05068,Care Cover 24/7 Ltd                     
Shropshire,00GG,Adult Social Care - Older people (aged 65 or over) including older mentally ill,Third Party Payments - Private Contractors           ,07/12/2017,269,"1,108.80",Revenue,CRT05068,Care Cover 24/7 Ltd                     
Shropshire,00GG,Adult Social Care - Older people (aged 65 or over) including older mentally ill,Third Party Payments - Private Contractors           ,07/12/2017,270,992.32,Revenue,CRT05068,Care Cover 24/7 Ltd                     
Shropshire,00GG,Adult Social Care - Older people (aged 65 or over) including older mentally ill,Third Party Payments - Private Contractors           ,07/12/2017,271,868.28,Revenue,CRT05068,Care Cover 24/7 Ltd                     
Shropshire,00GG,Adult Social Care - Older people (aged 65 or over) including older mentally ill,Third Party Payments - Private Contractors           ,07/12/2017,272,549.32,Revenue,CRT05068,Care Cover 24/7 Ltd                     
Shropshire,00GG,Children's and Education Services  - School and Pupil Support,Transport Related - Contracts                     ,07/12/2017,X711428242OCT17 ,480.00,Revenue,CRD68272,Central Taxis Ltd T/A Go Carz           
Shropshire,00GG,Children's and Education Services  - School and Pupil Support,Transport Related - Contracts                     ,07/12/2017,Z417707749SEP17 ,495.00,Revenue,CRD68272,Central Taxis Ltd T/A Go Carz           
Shropshire,00GG,Children's and Education Services  - School and Pupil Support,Transport Related - Contracts                     ,07/12/2017,Z417707749SEP17 ,495.00,Revenue,CRD68272,Central Taxis Ltd T/A Go Carz           
Shropshire,00GG,Children's and Education Services  - School and Pupil Support,Transport Related - Contracts                     ,07/12/2017,ZN10367803SEP17 ,143.48,Revenue,CRD68272,Central Taxis Ltd T/A Go Carz           
Shropshire,00GG,Children's and Education Services  - School and Pupil Support,Transport Related - Contracts                     ,07/12/2017,ZN10367803SEP17 ,278.52,Revenue,CRD68272,Central Taxis Ltd T/A Go Carz           
Shropshire,00GG,"Cultural, Environmental, Regulatory and Planning Services  - Open spaces",Employees - Indirect Employee Expenses    ,07/12/2017,400,580.00,Revenue,CRT05177,Clive Harrison                          
Shropshire,00GG,Adult Social Care - Older people (aged 65 or over) including older mentally ill,Third Party Payments - Private Contractors           ,07/12/2017,1047,715.67,Revenue,CRT04966,Cm Bespoke Care                         
Shropshire,00GG,None SeRCOP - Balance Sheet,Holding Accounts - Holding Accounts              ,07/12/2017,C160000099788   ,679.02,Revenue,ASC00002,Council Tax Refunds-Cheques             
Shropshire,00GG,"Cultural, Environmental, Regulatory and Planning Services  - Culture and heritage",Supplies And Services - Miscellaneous Expenses        ,07/12/2017,90325,532.00,Revenue,CRT05471,Creative Digital Printing Solutions Ltd 
Shropshire,00GG,None SeRCOP - Capital,Contingency/Other Capital - Capital - Professional Fees   ,07/12/2017,3664/1          ,"2,865.00",Capital,CRT06330,Cyril Orchard Management Limited        
Shropshire,00GG,None SeRCOP - Capital,Contingency/Other Capital - Capital - Construction/Conver ,07/12/2017,23361,786.32,Capital,CRD14737,David Rogers Electrical Contractors Ltd 
Shropshire,00GG,"Cultural, Environmental, Regulatory and Planning Services  - Agricultural & Fisheries Services",Premises Related - R & M Property Policy Group   ,07/12/2017,23362,"1,941.80",Revenue,CRD14737,David Rogers Electrical Contractors Ltd 
Shropshire,00GG,Adult Social Care - Older people (aged 65 or over) including older mentally ill,Supplies And Services - Equipt.  Furn. & Materials    ,07/12/2017,23366,526.02,Revenue,CRD14737,David Rogers Electrical Contractors Ltd 
Shropshire,00GG,Children's and Education Services  - Home to College Transport,Transport Related - Contracts                     ,07/12/2017,X612572553OCT17 ,557.00,Revenue,CRD03156,Diamond Cars (Telford) Limited          
Shropshire,00GG,Children's and Education Services  - School and Pupil Support,Transport Related - Contracts                     ,07/12/2017,X711462364SEP17 ,"1,312.00",Revenue,CRD03156,Diamond Cars (Telford) Limited          
Shropshire,00GG,Children's and Education Services  - School and Pupil Support,Transport Related - Contracts                     ,07/12/2017,X711472390SEP17 ,"1,380.00",Revenue,CRD03156,Diamond Cars (Telford) Limited          
Shropshire,00GG,Adult Social Care - Older people (aged 65 or over) including older mentally ill,Third Party Payments - Private Contractors           ,07/12/2017,01J604855       ,"1,003.02",Revenue,CRD46785,Direct Health (Uk) Ltd                  
Shropshire,00GG,None SeRCOP - Capital,Contingency/Other Capital - Capital - Construction/Conver ,07/12/2017,1917,"3,300.00",Capital,CRT06049,Electrical Solutions Sy Limited         
Shropshire,00GG,Housing Services - Homelessness,Supplies And Services - Miscellaneous Expenses        ,07/12/2017,SCC/71532/1117  ,650.00,Revenue,CRD34348,Glyn Upton Removals                     
Shropshire,00GG,Central Services - Trading Services,Supplies And Services - Miscellaneous Expenses        ,07/12/2017,INV131151       ,"5,500.00",Revenue,CRT04893,Gravitas Recruitment Group              
Shropshire,00GG,Central Services - Trading Services,Supplies And Services - Miscellaneous Expenses        ,07/12/2017,INV131206       ,"2,125.00",Revenue,CRT04893,Gravitas Recruitment Group              
Shropshire,00GG,Central Services - Trading Services,Supplies And Services - Miscellaneous Expenses        ,07/12/2017,INV131211       ,"3,000.00",Revenue,CRT04893,Gravitas Recruitment Group              
Shropshire,00GG,"Cultural, Environmental, Regulatory and Planning Services  - Open spaces",Premises Related - Repair & Maint. General       ,07/12/2017,77314,"2,971.22",Revenue,CRD76819,Hales Sawmills Ltd                      
Shropshire,00GG,Adult Social Care - Older people (aged 65 or over) including older mentally ill,Third Party Payments - Private Contractors           ,07/12/2017,02J604862       ,"1,864.41",Revenue,CRD06791,Have A Care                             
Shropshire,00GG,Adult Social Care - Adults aged under 65 with physical disability or sensory impairment,Third Party Payments - Private Contractors           ,07/12/2017,03J604830       ,"2,169.48",Revenue,CRD06791,Have A Care                             
Shropshire,00GG,Children's and Education Services - Adult and community learning,Supplies And Services - Miscellaneous Expenses        ,07/12/2017,T-1247          ,360.00,Revenue,CRD78226,Independent Living Partnership Ltd      
Shropshire,00GG,Children's and Education Services - Adult and community learning,Supplies And Services - Miscellaneous Expenses        ,07/12/2017,T-1247          ,500.00,Revenue,CRD78226,Independent Living Partnership Ltd      
Shropshire,00GG,Adult Social Care - Adults aged under 65 with physical disability or sensory impairment,Third Party Payments - Private Contractors           ,07/12/2017,01J604846       ,"1,783.87",Revenue,CRD86702,J K Caring For You                      
Shropshire,00GG,Adult Social Care - Older people (aged 65 or over) including older mentally ill,Third Party Payments - Private Contractors           ,07/12/2017,01J604856       ,"2,736.88",Revenue,CRD86702,J K Caring For You                      
Shropshire,00GG,"Cultural, Environmental, Regulatory and Planning Services  - Culture and heritage",Supplies And Services - Catering                      ,07/12/2017,365727,832.32,Revenue,CRD87777,L Lewis                                 
Shropshire,00GG,Adult Social Care - Adults aged under 65 with physical disability or sensory impairment,Third Party Payments - Private Contractors           ,07/12/2017,01J604851       ,"1,065.46",Revenue,CRT04130,La Petite Concierge                     
Shropshire,00GG,"Cultural, Environmental, Regulatory and Planning Services  - Recreation and sport",Premises Related - Repair & Maint. General       ,07/12/2017,LCSI877         ,"2,321.63",Revenue,CRT01974,Lacon Childe School                     
Shropshire,00GG,Central Services - Trading Services,Supplies And Services - Miscellaneous Expenses        ,07/12/2017,106110,600.00,Revenue,EMO00061,Mark De Lane Lea                        
Shropshire,00GG,Children's and Education Services  - School and Pupil Support,Transport Related - Contracts                     ,07/12/2017,INV000662       ,"5,000.00",Revenue,CRD96940,Market Dojo Ltd                         
Shropshire,00GG,"Cultural, Environmental, Regulatory and Planning Services  - Open spaces",Supplies And Services - Equipt.  Furn. & Materials    ,07/12/2017,SHRO01EN01      ,"2,240.00",Revenue,CRT06313,Mason James Insurance Services Limited  
Shropshire,00GG,Children's and Education Services - Adult and community learning,Employees - Indirect Employee Expenses    ,07/12/2017,15059,"2,325.00",Revenue,CRD95928,Mhfa England Cic                        
Shropshire,00GG,"Cultural, Environmental, Regulatory and Planning Services  - Development Control",Supplies And Services - Miscellaneous Expenses        ,07/12/2017,I7413213        ,942.48,Revenue,CRD10463,Midland News Association Ltd            
Shropshire,00GG,Central Services - Trading Services,Supplies And Services - Miscellaneous Expenses        ,07/12/2017,1597 6/11/17    ,950.00,Revenue,CRD91444,Miss Param Bains                        
Shropshire,00GG,"Cultural, Environmental, Regulatory and Planning Services  - Environmental initiatives",Supplies And Services - Miscellaneous Expenses        ,07/12/2017,NCH01-2017      ,"2,500.00",Revenue,EMO00068,N D Cane-Honeysett                      
Shropshire,00GG,Children's and Education Services - Social Care and Safeguards Other,Employees - Indirect Employee Expenses    ,07/12/2017,141497,544.00,Revenue,CRT05605,Nonstop Recruitment Ltd                 
Shropshire,00GG,Adult Social Care - Adults aged under 65 with physical disability or sensory impairment,Third Party Payments - Private Contractors           ,07/12/2017,01J604850       ,"1,962.40",Revenue,CRD96652,North Shropshire Home Care Ltd          
Shropshire,00GG,Central Services - Trading undertakings,Supplies And Services - Equipt.  Furn. & Materials    ,07/12/2017,15984,76.55,Revenue,CRD62006,Options Management                      
Shropshire,00GG,Central Services - Trading undertakings,Supplies And Services - Catering                      ,07/12/2017,15984,477.89,Revenue,CRD62006,Options Management                      
Shropshire,00GG,Adult Social Care - Adults aged under 65 with physical disability or sensory impairment,Third Party Payments - Private Contractors           ,07/12/2017,02J604834       ,967.90,Revenue,CRD92228,Oswestry Care Ltd                       
Shropshire,00GG,Public Health - Other,Supplies And Services - Miscellaneous Expenses        ,07/12/2017,122,"3,500.00",Revenue,CRT03483,Pathways2Prevention Ltd                 
Shropshire,00GG,Central Services - Trading undertakings,Supplies And Services - Catering                      ,07/12/2017,357553,68.60,Revenue,CRD33930,Paul Bentley                            
Shropshire,00GG,Central Services - Trading undertakings,Supplies And Services - Catering                      ,07/12/2017,357553,360.02,Revenue,CRD33930,Paul Bentley                            
Shropshire,00GG,Adult Social Care - Adults aged under 65 with physical disability or sensory impairment,Third Party Payments - Private Contractors           ,07/12/2017,01J604842       ,"5,569.68",Revenue,CRD77140,Peace Of Mind Homecare Ltd              
Shropshire,00GG,Adult Social Care - Adults aged under 65 with physical disability or sensory impairment,Third Party Payments - Private Contractors           ,07/12/2017,02J604842       ,"1,247.15",Revenue,CRD77140,Peace Of Mind Homecare Ltd              
Shropshire,00GG,Adult Social Care - Adults aged under 65 with physical disability or sensory impairment,Third Party Payments - Private Contractors           ,07/12/2017,150329,642.25,Revenue,CRD86770,Priority Care (Shropshire) Ltd          
Shropshire,00GG,Adult Social Care - Adults aged under 65 with physical disability or sensory impairment,Third Party Payments - Private Contractors           ,07/12/2017,150330,772.36,Revenue,CRD86770,Priority Care (Shropshire) Ltd          
Shropshire,00GG,Adult Social Care - Older people (aged 65 or over) including older mentally ill,Third Party Payments - Private Contractors           ,07/12/2017,GB OCT17        ,"3,869.28",Revenue,CRD86770,Priority Care (Shropshire) Ltd          
Shropshire,00GG,Adult Social Care - Older people (aged 65 or over) including older mentally ill,Third Party Payments - Private Contractors           ,07/12/2017,JFOCT17         ,628.32,Revenue,CRD86770,Priority Care (Shropshire) Ltd          
Shropshire,00GG,Adult Social Care - Older people (aged 65 or over) including older mentally ill,Third Party Payments - Private Contractors           ,07/12/2017,1518,"1,368.75",Revenue,CRD95012,Quality Home Care Ltd                   
Shropshire,00GG,Adult Social Care - Adults aged under 65 with physical disability or sensory impairment,Third Party Payments - Private Contractors           ,07/12/2017,01J604833       ,"2,501.33",Revenue,CRD32106,Radis Community Care                    
Shropshire,00GG,Adult Social Care - Adults aged under 65 with physical disability or sensory impairment,Third Party Payments - Private Contractors           ,07/12/2017,02J604833       ,914.43,Revenue,CRD32106,Radis Community Care                    
Shropshire,00GG,Central Services - Trading Services,Supplies And Services - Printing & Stationery         ,07/12/2017,100972044,843.01,Revenue,CRD84595,Ricoh Uk  Ltd                           
Shropshire,00GG,Central Services - Trading Services,Supplies And Services - Printing & Stationery         ,07/12/2017,100972046,813.54,Revenue,CRD84595,Ricoh Uk  Ltd                           
Shropshire,00GG,Central Services - Trading Services,Supplies And Services - Printing & Stationery         ,07/12/2017,100972049,907.83,Revenue,CRD84595,Ricoh Uk  Ltd                           
Shropshire,00GG,"Cultural, Environmental, Regulatory and Planning Services  - Open spaces",Supplies And Services - Equipt.  Furn. & Materials    ,07/12/2017,506237,"3,924.00",Revenue,CRT04330,Robert Lee (Plant) Ltd                  
Shropshire,00GG,Central Services - Trading Services,Supplies And Services - Miscellaneous Expenses        ,07/12/2017,SI-31552        ,"9,900.00",Revenue,CRT02502,Roc Search Limited                      
Shropshire,00GG,Central Services - Elections,Supplies And Services - Communications & Computing    ,07/12/2017,9055468127,"6,747.44",Revenue,CRD89440,Royal Mail Group Ltd                    
Shropshire,00GG,"Cultural, Environmental, Regulatory and Planning Services  - Open spaces",Premises Related - Repair & Maint. General       ,07/12/2017,7304,635.17,Revenue,CRD97859,S D Vaughan & Son                       
Shropshire,00GG,Environment & Regulatory - Regulatory Services,Supplies And Services - Equipt.  Furn. & Materials    ,07/12/2017,PSI-0046367     ,"1,117.50",Revenue,CRD95579,Safetynet Solutions Limited             
Shropshire,00GG,Adult Social Care - Adults aged under 65 with mental health needs,Supplies And Services - Services/Allowances           ,07/12/2017,DOLKSHEMENDRA939,560.00,Revenue,CRD88828,Sajkum Limited                          
Shropshire,00GG,Adult Social Care - Adults aged under 65 with physical disability or sensory impairment,Third Party Payments - Private Contractors           ,07/12/2017,01J604843       ,915.63,Revenue,CRD80962,Salopian Care Ltd                       
Shropshire,00GG,Highways and Transport Services - Parking Services,Supplies And Services - Miscellaneous Expenses        ,07/12/2017,633690,0.17,Revenue,CRD79352,Security Plus + Limited                 
Shropshire,00GG,Highways and Transport Services - Parking Services,Supplies And Services - Miscellaneous Expenses        ,07/12/2017,633690,0.32,Revenue,CRD79352,Security Plus + Limited                 
Shropshire,00GG,Highways and Transport Services - Parking Services,Supplies And Services - Miscellaneous Expenses        ,07/12/2017,633690,0.33,Revenue,CRD79352,Security Plus + Limited                 
Shropshire,00GG,Highways and Transport Services - Parking Services,Supplies And Services - Miscellaneous Expenses        ,07/12/2017,633690,0.56,Revenue,CRD79352,Security Plus + Limited                 
Shropshire,00GG,Highways and Transport Services - Parking Services,Supplies And Services - Miscellaneous Expenses        ,07/12/2017,633690,0.73,Revenue,CRD79352,Security Plus + Limited                 
Shropshire,00GG,Highways and Transport Services - Parking Services,Supplies And Services - Miscellaneous Expenses        ,07/12/2017,633690,0.80,Revenue,CRD79352,Security Plus + Limited                 
Shropshire,00GG,Highways and Transport Services - Parking Services,Supplies And Services - Miscellaneous Expenses        ,07/12/2017,633690,0.97,Revenue,CRD79352,Security Plus + Limited                 
Shropshire,00GG,Highways and Transport Services - Parking Services,Supplies And Services - Miscellaneous Expenses        ,07/12/2017,633690,1.04,Revenue,CRD79352,Security Plus + Limited                 
Shropshire,00GG,Highways and Transport Services - Parking Services,Supplies And Services - Miscellaneous Expenses        ,07/12/2017,633690,1.08,Revenue,CRD79352,Security Plus + Limited                 
Shropshire,00GG,Highways and Transport Services - Parking Services,Supplies And Services - Miscellaneous Expenses        ,07/12/2017,633690,1.48,Revenue,CRD79352,Security Plus + Limited                 
Shropshire,00GG,Highways and Transport Services - Parking Services,Supplies And Services - Miscellaneous Expenses        ,07/12/2017,633690,1.54,Revenue,CRD79352,Security Plus + Limited                 
Shropshire,00GG,Highways and Transport Services - Parking Services,Supplies And Services - Miscellaneous Expenses        ,07/12/2017,633690,1.63,Revenue,CRD79352,Security Plus + Limited                 
Shropshire,00GG,Highways and Transport Services - Parking Services,Supplies And Services - Miscellaneous Expenses        ,07/12/2017,633690,1.73,Revenue,CRD79352,Security Plus + Limited                 
Shropshire,00GG,Highways and Transport Services - Parking Services,Supplies And Services - Miscellaneous Expenses        ,07/12/2017,633690,2.10,Revenue,CRD79352,Security Plus + Limited                 
Shropshire,00GG,Highways and Transport Services - Parking Services,Supplies And Services - Miscellaneous Expenses        ,07/12/2017,633690,2.14,Revenue,CRD79352,Security Plus + Limited                 
Shropshire,00GG,Highways and Transport Services - Parking Services,Supplies And Services - Miscellaneous Expenses        ,07/12/2017,633690,2.50,Revenue,CRD79352,Security Plus + Limited                 
Shropshire,00GG,Highways and Transport Services - Public Transport,Supplies And Services - Miscellaneous Expenses        ,07/12/2017,633690,3.14,Revenue,CRD79352,Security Plus + Limited                 
Shropshire,00GG,Highways and Transport Services - Parking Services,Supplies And Services - Miscellaneous Expenses        ,07/12/2017,633690,3.40,Revenue,CRD79352,Security Plus + Limited                 
Shropshire,00GG,Highways and Transport Services - Parking Services,Supplies And Services - Miscellaneous Expenses        ,07/12/2017,633690,3.78,Revenue,CRD79352,Security Plus + Limited                 
Shropshire,00GG,Highways and Transport Services - Parking Services,Supplies And Services - Miscellaneous Expenses        ,07/12/2017,633690,5.31,Revenue,CRD79352,Security Plus + Limited                 
Shropshire,00GG,Highways and Transport Services - Parking Services,Supplies And Services - Miscellaneous Expenses        ,07/12/2017,633690,5.72,Revenue,CRD79352,Security Plus + Limited                 
Shropshire,00GG,Highways and Transport Services - Parking Services,Supplies And Services - Miscellaneous Expenses        ,07/12/2017,633690,6.22,Revenue,CRD79352,Security Plus + Limited                 
Shropshire,00GG,Highways and Transport Services - Parking Services,Supplies And Services - Miscellaneous Expenses        ,07/12/2017,633690,6.23,Revenue,CRD79352,Security Plus + Limited                 
Shropshire,00GG,Highways and Transport Services - Parking Services,Supplies And Services - Miscellaneous Expenses        ,07/12/2017,633690,6.35,Revenue,CRD79352,Security Plus + Limited                 
Shropshire,00GG,Highways and Transport Services - Parking Services,Supplies And Services - Miscellaneous Expenses        ,07/12/2017,633690,7.46,Revenue,CRD79352,Security Plus + Limited                 
Shropshire,00GG,Highways and Transport Services - Parking Services,Supplies And Services - Miscellaneous Expenses        ,07/12/2017,633690,9.41,Revenue,CRD79352,Security Plus + Limited                 
Shropshire,00GG,Highways and Transport Services - Parking Services,Supplies And Services - Miscellaneous Expenses        ,07/12/2017,633690,9.53,Revenue,CRD79352,Security Plus + Limited                 
Shropshire,00GG,Highways and Transport Services - Parking Services,Supplies And Services - Miscellaneous Expenses        ,07/12/2017,633690,10.87,Revenue,CRD79352,Security Plus + Limited                 
Shropshire,00GG,Highways and Transport Services - Parking Services,Supplies And Services - Miscellaneous Expenses        ,07/12/2017,633690,11.57,Revenue,CRD79352,Security Plus + Limited                 
Shropshire,00GG,Highways and Transport Services - Parking Services,Supplies And Services - Miscellaneous Expenses        ,07/12/2017,633690,13.34,Revenue,CRD79352,Security Plus + Limited                 
Shropshire,00GG,Highways and Transport Services - Parking Services,Supplies And Services - Miscellaneous Expenses        ,07/12/2017,633690,16.44,Revenue,CRD79352,Security Plus + Limited                 
Shropshire,00GG,Highways and Transport Services - Parking Services,Supplies And Services - Miscellaneous Expenses        ,07/12/2017,633690,17.48,Revenue,CRD79352,Security Plus + Limited                 
Shropshire,00GG,Highways and Transport Services - Parking Services,Supplies And Services - Miscellaneous Expenses        ,07/12/2017,633690,18.44,Revenue,CRD79352,Security Plus + Limited                 
Shropshire,00GG,Highways and Transport Services - Parking Services,Supplies And Services - Miscellaneous Expenses        ,07/12/2017,633690,25.02,Revenue,CRD79352,Security Plus + Limited                 
Shropshire,00GG,Highways and Transport Services - Parking Services,Supplies And Services - Miscellaneous Expenses        ,07/12/2017,633690,27.06,Revenue,CRD79352,Security Plus + Limited                 
Shropshire,00GG,Highways and Transport Services - Public Transport,Supplies And Services - Miscellaneous Expenses        ,07/12/2017,633690,29.15,Revenue,CRD79352,Security Plus + Limited                 
Shropshire,00GG,Highways and Transport Services - Parking Services,Supplies And Services - Miscellaneous Expenses        ,07/12/2017,633690,29.48,Revenue,CRD79352,Security Plus + Limited                 
Shropshire,00GG,Highways and Transport Services - Parking Services,Supplies And Services - Miscellaneous Expenses        ,07/12/2017,633690,31.58,Revenue,CRD79352,Security Plus + Limited                 
Shropshire,00GG,Highways and Transport Services - Parking Services,Supplies And Services - Miscellaneous Expenses        ,07/12/2017,633690,37.86,Revenue,CRD79352,Security Plus + Limited                 
Shropshire,00GG,Highways and Transport Services - Parking Services,Supplies And Services - Miscellaneous Expenses        ,07/12/2017,633690,40.51,Revenue,CRD79352,Security Plus + Limited                 
Shropshire,00GG,Highways and Transport Services - Parking Services,Supplies And Services - Miscellaneous Expenses        ,07/12/2017,633690,49.21,Revenue,CRD79352,Security Plus + Limited                 
Shropshire,00GG,Highways and Transport Services - Parking Services,Supplies And Services - Miscellaneous Expenses        ,07/12/2017,633690,53.56,Revenue,CRD79352,Security Plus + Limited                 
Shropshire,00GG,Highways and Transport Services - Public Transport,Supplies And Services - Miscellaneous Expenses        ,07/12/2017,633690,54.11,Revenue,CRD79352,Security Plus + Limited                 
Shropshire,00GG,Highways and Transport Services - Parking Services,Supplies And Services - Miscellaneous Expenses        ,07/12/2017,633690,59.61,Revenue,CRD79352,Security Plus + Limited                 
Shropshire,00GG,Highways and Transport Services - Parking Services,Supplies And Services - Miscellaneous Expenses        ,07/12/2017,633690,65.42,Revenue,CRD79352,Security Plus + Limited                 
Shropshire,00GG,Highways and Transport Services - Parking Services,Supplies And Services - Miscellaneous Expenses        ,07/12/2017,633690,93.65,Revenue,CRD79352,Security Plus + Limited                 
Shropshire,00GG,Highways and Transport Services - Parking Services,Supplies And Services - Miscellaneous Expenses        ,07/12/2017,633690,155.90,Revenue,CRD79352,Security Plus + Limited                 
Shropshire,00GG,Highways and Transport Services - Parking Services,Supplies And Services - Miscellaneous Expenses        ,07/12/2017,633690,160.82,Revenue,CRD79352,Security Plus + Limited                 
Shropshire,00GG,Central Services - Trading Services,Employees - Indirect Employee Expenses    ,07/12/2017,INV209348       ,"1,709.51",Revenue,CRT05988,Sellick Partnership Limited             
Shropshire,00GG,Central Services - Trading undertakings,Supplies And Services - Equipt.  Furn. & Materials    ,07/12/2017,101332,837.50,Revenue,CRD81331,Severn Electric Co Ltd                  
Shropshire,00GG,Adult Social Care - Adults aged under 65 with physical disability or sensory impairment,Third Party Payments - Private Contractors           ,07/12/2017,02J604839       ,"3,524.10",Revenue,CRD61048,Short Notice Care Services              
Shropshire,00GG,None SeRCOP - Balance Sheet,Current Assets - Government Debtors            ,07/12/2017,JULTOSEP17VAT   ,"210,319.89",Revenue,CRD55634,Shropshire & Wrekin Fire Authority      
Shropshire,00GG,Central Services - Trading Services,Premises Related - Repair & Maint. General       ,07/12/2017,25683,565.77,Revenue,CRD67599,Shropshire Cooling Services Ltd         
Shropshire,00GG,Children's and Education Services - Youth,Supplies And Services - Miscellaneous Expenses        ,07/12/2017,2017-0068       ,"8,125.00",Revenue,CRD38433,Shropshire Youth Association            
Shropshire,00GG,Adult Social Care - Older people (aged 65 or over) including older mentally ill,Third Party Payments - Private Contractors           ,07/12/2017,EH134-1731      ,681.92,Revenue,CRT03486,Slrc Trading Ltd                        
Shropshire,00GG,Central Services - Trading Services,Premises Related - Repair & Maint. General       ,07/12/2017,101654,489.00,Revenue,CRD78924,Smith Of Derby Ltd                      
Shropshire,00GG,Central Services - Trading Services,Supplies And Services - Communications & Computing    ,07/12/2017,1067469,"1,368.00",Revenue,CRD56358,Stone Computers Ltd                     
Shropshire,00GG,Central Services - Trading Services,Supplies And Services - Communications & Computing    ,07/12/2017,1067470,578.00,Revenue,CRD56358,Stone Computers Ltd                     
Shropshire,00GG,Children's and Education Services - Social Care and Safeguards Looked After Children,Third Party Payments - Private Contractors           ,07/12/2017,209157,700.00,Revenue,CRD93588,Swiis Foster Care                       
Shropshire,00GG,Highways and Transport Services - Public Transport,Supplies And Services - Grants & Subscriptions        ,07/12/2017,MD0341 64 NOV17 ,510.70,Revenue,CRT04739,The Booking Point Limited               
Shropshire,00GG,Central Services - Trading Services,Supplies And Services - Miscellaneous Expenses        ,07/12/2017,7379,"1,250.00",Revenue,CRD53155,The Strettons Mayfair Trust             
Shropshire,00GG,Adult Social Care - Adults aged under 65 with learning disabilities,Third Party Payments - Private Contractors           ,07/12/2017,01J604844       ,624.96,Revenue,CRD39419,Trident Reach The People Charity        
Shropshire,00GG,"Cultural, Environmental, Regulatory and Planning Services  - Culture and heritage",Supplies And Services - Miscellaneous Expenses        ,07/12/2017,GB17B0142210    ,"2,145.25",Revenue,CRD88344,Twentieth Century Fox Film Company Ltd  
Shropshire,00GG,"Cultural, Environmental, Regulatory and Planning Services  - Culture and heritage",Supplies And Services - Miscellaneous Expenses        ,07/12/2017,GB17B0142212    ,774.90,Revenue,CRD88344,Twentieth Century Fox Film Company Ltd  
Shropshire,00GG,Adult Social Care - Adults aged under 65 with learning disabilities,Transport Related - Direct Transport Costs        ,07/12/2017,5S10445453SEP17 ,900.00,Revenue,CRD66390,Ultimate Taxis Ltd                      
Shropshire,00GG,Adult Social Care - Adults aged under 65 with learning disabilities,Transport Related - Direct Transport Costs        ,07/12/2017,5S10445500OCT17 ,"1,080.00",Revenue,CRD66390,Ultimate Taxis Ltd                      
Shropshire,00GG,"Cultural, Environmental, Regulatory and Planning Services  - Culture and heritage",Supplies And Services - Miscellaneous Expenses        ,07/12/2017,LC983878        ,650.00,Revenue,CRD99782,University Of Cambridge                 
Shropshire,00GG,Children's and Education Services - Children's Centres,Premises Related - Repair & Maint. General       ,07/12/2017,286604,8.52,Revenue,CRD99744,Walker Fire (Uk) Ltd                    
Shropshire,00GG,"Cultural, Environmental, Regulatory and Planning Services  - Culture and heritage",Premises Related - Repair & Maint. General       ,07/12/2017,286604,12.76,Revenue,CRD99744,Walker Fire (Uk) Ltd                    
Shropshire,00GG,County Training trading account - Training,Premises Related - Repair & Maint. General       ,07/12/2017,286604,40.40,Revenue,CRD99744,Walker Fire (Uk) Ltd                    
Shropshire,00GG,Central Services - Trading Services,Supplies And Services - Communications & Computing    ,07/12/2017,IN18US17009577  ,"7,164.11",Revenue,CRD97605,Whistl North Limited                    
Shropshire,00GG,Central Services - Trading Services,Supplies And Services - Communications & Computing    ,07/12/2017,CB07392         ,581.44,Revenue,CRD62269,Xma Ltd                                 
Shropshire,00GG,Central Services - Trading Services,Supplies And Services - Communications & Computing    ,07/12/2017,CB07402         ,719.00,Revenue,CRD62269,Xma Ltd                                 
Shropshire,00GG,Adult Social Care - Adults aged under 65 with learning disabilities,Supplies And Services - Equipt.  Furn. & Materials    ,08/12/2017,406244215,425.14,Revenue,CRD00742,Air Products Plc                        
Shropshire,00GG,Children's and Education Services - Social Care and Safeguards Family Support Services,Third Party Payments - Private Contractors           ,08/12/2017,10004069,544.80,Revenue,CRD86682,Amg                                     
Shropshire,00GG,Highways and Transport Services - Public Transport,Supplies And Services - Grants & Subscriptions        ,08/12/2017,CONFAREDEC17    ,"132,512.31",Revenue,CRD10149,Arriva Midlands  Ltd                    
Shropshire,00GG,Adult Social Care - Adults aged under 65 with learning disabilities,Third Party Payments - Private Contractors           ,08/12/2017,01J604892 101217,"13,307.00",Revenue,HOM01468,Beaumaris Health Care Ltd               
Shropshire,00GG,Adult Social Care - Older people (aged 65 or over) including older mentally ill,Supplies And Services - Equipt.  Furn. & Materials    ,08/12/2017,IN92103         ,"2,134.00",Revenue,CRD62601,Berwick Care Equipment Limited          
Shropshire,00GG,Central Services - Trading undertakings,Supplies And Services - Catering                      ,08/12/2017,77636363,501.94,Revenue,CRD76838,Bidfood                                 
Shropshire,00GG,Central Services - Trading undertakings,Supplies And Services - Catering                      ,08/12/2017,77636483,934.03,Revenue,CRD76838,Bidfood                                 
Shropshire,00GG,Central Services - Trading Services,Supplies And Services - Catering                      ,08/12/2017,77636700,15.78,Revenue,CRD76838,Bidfood                                 
Shropshire,00GG,Central Services - Trading Services,Supplies And Services - Catering                      ,08/12/2017,77636700,713.97,Revenue,CRD76838,Bidfood                                 
Shropshire,00GG,Central Services - Trading undertakings,Supplies And Services - Catering                      ,08/12/2017,77636730,29.84,Revenue,CRD76838,Bidfood                                 
Shropshire,00GG,Central Services - Trading undertakings,Supplies And Services - Catering                      ,08/12/2017,77636730,"1,985.77",Revenue,CRD76838,Bidfood                                 
Shropshire,00GG,Central Services - Trading undertakings,Supplies And Services - Catering                      ,08/12/2017,77636817,42.72,Revenue,CRD76838,Bidfood                                 
Shropshire,00GG,Central Services - Trading undertakings,Supplies And Services - Catering                      ,08/12/2017,77636817,"1,216.51",Revenue,CRD76838,Bidfood                                 
Shropshire,00GG,Central Services - Trading undertakings,Supplies And Services - Catering                      ,08/12/2017,77636837,38.76,Revenue,CRD76838,Bidfood                                 
Shropshire,00GG,Central Services - Trading undertakings,Supplies And Services - Catering                      ,08/12/2017,77636837,654.26,Revenue,CRD76838,Bidfood                                 
Shropshire,00GG,Central Services - Trading Services,Supplies And Services - Catering                      ,08/12/2017,77636882,14.92,Revenue,CRD76838,Bidfood                                 
Shropshire,00GG,Central Services - Trading Services,Supplies And Services - Catering                      ,08/12/2017,77636882,668.03,Revenue,CRD76838,Bidfood                                 
Shropshire,00GG,Central Services - Trading undertakings,Supplies And Services - Catering                      ,08/12/2017,77636935,577.23,Revenue,CRD76838,Bidfood                                 
Shropshire,00GG,Central Services - Trading undertakings,Supplies And Services - Catering                      ,08/12/2017,77637013,622.73,Revenue,CRD76838,Bidfood                                 
Shropshire,00GG,Central Services - Trading undertakings,Supplies And Services - Catering                      ,08/12/2017,77637018,36.14,Revenue,CRD76838,Bidfood                                 
Shropshire,00GG,Central Services - Trading undertakings,Supplies And Services - Catering                      ,08/12/2017,77637018,"1,198.55",Revenue,CRD76838,Bidfood                                 
Shropshire,00GG,Central Services - Trading undertakings,Supplies And Services - Catering                      ,08/12/2017,77641017,520.60,Revenue,CRD76838,Bidfood                                 
Shropshire,00GG,Central Services - Trading undertakings,Supplies And Services - Catering                      ,08/12/2017,77647750,563.49,Revenue,CRD76838,Bidfood                                 
Shropshire,00GG,Central Services - Trading undertakings,Supplies And Services - Catering                      ,08/12/2017,77655450,745.76,Revenue,CRD76838,Bidfood                                 
Shropshire,00GG,Central Services - Trading undertakings,Supplies And Services - Catering                      ,08/12/2017,77655676,819.16,Revenue,CRD76838,Bidfood                                 
Shropshire,00GG,Central Services - Trading Services,Supplies And Services - Catering                      ,08/12/2017,77655704,568.41,Revenue,CRD76838,Bidfood                                 
Shropshire,00GG,Central Services - Trading undertakings,Supplies And Services - Catering                      ,08/12/2017,77655741,17.78,Revenue,CRD76838,Bidfood                                 
Shropshire,00GG,Central Services - Trading undertakings,Supplies And Services - Catering                      ,08/12/2017,77655741,"1,042.32",Revenue,CRD76838,Bidfood                                 
Shropshire,00GG,Central Services - Trading undertakings,Supplies And Services - Catering                      ,08/12/2017,77655866,7.46,Revenue,CRD76838,Bidfood                                 
Shropshire,00GG,Central Services - Trading undertakings,Supplies And Services - Catering                      ,08/12/2017,77655866,568.19,Revenue,CRD76838,Bidfood                                 
Shropshire,00GG,Central Services - Trading undertakings,Supplies And Services - Catering                      ,08/12/2017,77655936,16.64,Revenue,CRD76838,Bidfood                                 
Shropshire,00GG,Central Services - Trading undertakings,Supplies And Services - Catering                      ,08/12/2017,77655936,585.33,Revenue,CRD76838,Bidfood                                 
Shropshire,00GG,Central Services - Trading Services,Supplies And Services - Catering                      ,08/12/2017,77655991,881.98,Revenue,CRD76838,Bidfood                                 
Shropshire,00GG,Central Services - Trading undertakings,Supplies And Services - Catering                      ,08/12/2017,77656769,13.83,Revenue,CRD76838,Bidfood                                 
Shropshire,00GG,Central Services - Trading undertakings,Supplies And Services - Catering                      ,08/12/2017,77656769,489.04,Revenue,CRD76838,Bidfood                                 
Shropshire,00GG,Central Services - Trading undertakings,Supplies And Services - Catering                      ,08/12/2017,77656823,558.35,Revenue,CRD76838,Bidfood                                 
Shropshire,00GG,Central Services - Trading Services,Supplies And Services - Catering                      ,08/12/2017,77678709,8.32,Revenue,CRD76838,Bidfood                                 
Shropshire,00GG,Central Services - Trading Services,Supplies And Services - Catering                      ,08/12/2017,77678709,556.70,Revenue,CRD76838,Bidfood                                 
Shropshire,00GG,Central Services - Trading undertakings,Supplies And Services - Catering                      ,08/12/2017,77678818,946.74,Revenue,CRD76838,Bidfood                                 
Shropshire,00GG,Central Services - Trading undertakings,Supplies And Services - Catering                      ,08/12/2017,77678886,44.76,Revenue,CRD76838,Bidfood                                 
Shropshire,00GG,Central Services - Trading undertakings,Supplies And Services - Catering                      ,08/12/2017,77678886,"1,561.33",Revenue,CRD76838,Bidfood                                 
Shropshire,00GG,Central Services - Trading undertakings,Supplies And Services - Catering                      ,08/12/2017,77678935,786.04,Revenue,CRD76838,Bidfood                                 
Shropshire,00GG,Central Services - Trading undertakings,Supplies And Services - Catering                      ,08/12/2017,77678969,985.77,Revenue,CRD76838,Bidfood                                 
Shropshire,00GG,Central Services - Trading undertakings,Supplies And Services - Catering                      ,08/12/2017,77679060,52.22,Revenue,CRD76838,Bidfood                                 
Shropshire,00GG,Central Services - Trading undertakings,Supplies And Services - Catering                      ,08/12/2017,77679060,"1,281.09",Revenue,CRD76838,Bidfood                                 
Shropshire,00GG,Central Services - Trading undertakings,Supplies And Services - Catering                      ,08/12/2017,77679061,12.80,Revenue,CRD76838,Bidfood                                 
Shropshire,00GG,Central Services - Trading undertakings,Supplies And Services - Catering                      ,08/12/2017,77679061,573.78,Revenue,CRD76838,Bidfood                                 
Shropshire,00GG,Central Services - Trading undertakings,Supplies And Services - Catering                      ,08/12/2017,77679086,21.76,Revenue,CRD76838,Bidfood                                 
Shropshire,00GG,Central Services - Trading undertakings,Supplies And Services - Catering                      ,08/12/2017,77679086,655.14,Revenue,CRD76838,Bidfood                                 
Shropshire,00GG,Central Services - Trading undertakings,Supplies And Services - Catering                      ,08/12/2017,77679116,14.13,Revenue,CRD76838,Bidfood                                 
Shropshire,00GG,Central Services - Trading undertakings,Supplies And Services - Catering                      ,08/12/2017,77679116,697.81,Revenue,CRD76838,Bidfood                                 
Shropshire,00GG,Central Services - Trading Services,Supplies And Services - Catering                      ,08/12/2017,77679204,21.76,Revenue,CRD76838,Bidfood                                 
Shropshire,00GG,Central Services - Trading Services,Supplies And Services - Catering                      ,08/12/2017,77679204,841.10,Revenue,CRD76838,Bidfood                                 
Shropshire,00GG,Central Services - Trading undertakings,Supplies And Services - Catering                      ,08/12/2017,77679241,24.10,Revenue,CRD76838,Bidfood                                 
Shropshire,00GG,Central Services - Trading undertakings,Supplies And Services - Catering                      ,08/12/2017,77679241,611.42,Revenue,CRD76838,Bidfood                                 
Shropshire,00GG,Central Services - Trading undertakings,Supplies And Services - Catering                      ,08/12/2017,77679262,656.45,Revenue,CRD76838,Bidfood                                 
Shropshire,00GG,Central Services - Trading undertakings,Supplies And Services - Catering                      ,08/12/2017,77679263,10.88,Revenue,CRD76838,Bidfood                                 
Shropshire,00GG,Central Services - Trading undertakings,Supplies And Services - Catering                      ,08/12/2017,77679263,521.51,Revenue,CRD76838,Bidfood                                 
Shropshire,00GG,Central Services - Trading undertakings,Supplies And Services - Catering                      ,08/12/2017,77679285,14.92,Revenue,CRD76838,Bidfood                                 
Shropshire,00GG,Central Services - Trading undertakings,Supplies And Services - Catering                      ,08/12/2017,77679285,671.55,Revenue,CRD76838,Bidfood                                 
Shropshire,00GG,Central Services - Trading undertakings,Supplies And Services - Catering                      ,08/12/2017,77679319,655.06,Revenue,CRD76838,Bidfood                                 
Shropshire,00GG,Central Services - Trading undertakings,Supplies And Services - Catering                      ,08/12/2017,77694120,20.22,Revenue,CRD76838,Bidfood                                 
Shropshire,00GG,Central Services - Trading undertakings,Supplies And Services - Catering                      ,08/12/2017,77694120,825.69,Revenue,CRD76838,Bidfood                                 
Shropshire,00GG,Central Services - Trading undertakings,Supplies And Services - Catering                      ,08/12/2017,77702521,516.10,Revenue,CRD76838,Bidfood                                 
Shropshire,00GG,Central Services - Trading undertakings,Supplies And Services - Catering                      ,08/12/2017,77702596,21.36,Revenue,CRD76838,Bidfood                                 
Shropshire,00GG,Central Services - Trading undertakings,Supplies And Services - Catering                      ,08/12/2017,77702596,954.78,Revenue,CRD76838,Bidfood                                 
Shropshire,00GG,Central Services - Trading undertakings,Supplies And Services - Catering                      ,08/12/2017,77702720,681.28,Revenue,CRD76838,Bidfood                                 
Shropshire,00GG,Central Services - Trading undertakings,Supplies And Services - Catering                      ,08/12/2017,77702891,558.13,Revenue,CRD76838,Bidfood                                 
Shropshire,00GG,Central Services - Trading Services,Supplies And Services - Catering                      ,08/12/2017,77702955,"1,274.35",Revenue,CRD76838,Bidfood                                 
Shropshire,00GG,Central Services - Trading undertakings,Supplies And Services - Catering                      ,08/12/2017,77723879,14.92,Revenue,CRD76838,Bidfood                                 
Shropshire,00GG,Central Services - Trading undertakings,Supplies And Services - Catering                      ,08/12/2017,77723879,759.29,Revenue,CRD76838,Bidfood                                 
Shropshire,00GG,Central Services - Trading undertakings,Supplies And Services - Catering                      ,08/12/2017,77724199,748.27,Revenue,CRD76838,Bidfood                                 
Shropshire,00GG,Central Services - Trading undertakings,Supplies And Services - Catering                      ,08/12/2017,77724661,685.83,Revenue,CRD76838,Bidfood                                 
Shropshire,00GG,Central Services - Trading undertakings,Supplies And Services - Catering                      ,08/12/2017,77724744,569.62,Revenue,CRD76838,Bidfood                                 
Shropshire,00GG,Central Services - Trading undertakings,Supplies And Services - Catering                      ,08/12/2017,77724748,744.95,Revenue,CRD76838,Bidfood                                 
Shropshire,00GG,Central Services - Trading Services,Supplies And Services - Catering                      ,08/12/2017,77724771,16.64,Revenue,CRD76838,Bidfood                                 
Shropshire,00GG,Central Services - Trading Services,Supplies And Services - Catering                      ,08/12/2017,77724771,745.70,Revenue,CRD76838,Bidfood                                 
Shropshire,00GG,Central Services - Trading undertakings,Supplies And Services - Catering                      ,08/12/2017,77724809,510.11,Revenue,CRD76838,Bidfood                                 
Shropshire,00GG,Central Services - Trading undertakings,Supplies And Services - Catering                      ,08/12/2017,77724849,125.47,Revenue,CRD76838,Bidfood                                 
Shropshire,00GG,Central Services - Trading undertakings,Supplies And Services - Catering                      ,08/12/2017,77724849,565.28,Revenue,CRD76838,Bidfood                                 
Shropshire,00GG,Central Services - Trading undertakings,Supplies And Services - Catering                      ,08/12/2017,77724886,37.30,Revenue,CRD76838,Bidfood                                 
Shropshire,00GG,Central Services - Trading undertakings,Supplies And Services - Catering                      ,08/12/2017,77724886,714.40,Revenue,CRD76838,Bidfood                                 
Shropshire,00GG,Central Services - Trading undertakings,Supplies And Services - Catering                      ,08/12/2017,77725015,41.25,Revenue,CRD76838,Bidfood                                 
Shropshire,00GG,Central Services - Trading undertakings,Supplies And Services - Catering                      ,08/12/2017,77725015,861.61,Revenue,CRD76838,Bidfood                                 
Shropshire,00GG,Central Services - Trading undertakings,Supplies And Services - Catering                      ,08/12/2017,77725269,642.71,Revenue,CRD76838,Bidfood                                 
Shropshire,00GG,Central Services - Trading undertakings,Supplies And Services - Catering                      ,08/12/2017,77725289,"1,011.52",Revenue,CRD76838,Bidfood                                 
Shropshire,00GG,Central Services - Trading undertakings,Supplies And Services - Catering                      ,08/12/2017,77725418,58.19,Revenue,CRD76838,Bidfood                                 
Shropshire,00GG,Central Services - Trading undertakings,Supplies And Services - Catering                      ,08/12/2017,77725418,630.22,Revenue,CRD76838,Bidfood                                 
Shropshire,00GG,Central Services - Trading undertakings,Supplies And Services - Catering                      ,08/12/2017,77725504,507.28,Revenue,CRD76838,Bidfood                                 
Shropshire,00GG,Central Services - Trading Services,Supplies And Services - Catering                      ,08/12/2017,77725508,91.66,Revenue,CRD76838,Bidfood                                 
Shropshire,00GG,Central Services - Trading Services,Supplies And Services - Catering                      ,08/12/2017,77725508,546.49,Revenue,CRD76838,Bidfood                                 
Shropshire,00GG,Central Services - Other Services,Supplies And Services - Communications & Computing    ,08/12/2017,17075231,958.00,Revenue,CRD85811,Document Output Solutions Uk Limited    
Shropshire,00GG,Central Services - Other Services,Supplies And Services - Communications & Computing    ,08/12/2017,17075231,"1,937.00",Revenue,CRD85811,Document Output Solutions Uk Limited    
Shropshire,00GG,Central Services - Other Services,Supplies And Services - Communications & Computing    ,08/12/2017,17075231,"1,937.00",Revenue,CRD85811,Document Output Solutions Uk Limited    
Shropshire,00GG,Central Services - Other Services,Supplies And Services - Communications & Computing    ,08/12/2017,17075231,"4,048.00",Revenue,CRD85811,Document Output Solutions Uk Limited    
Shropshire,00GG,Central Services - Trading undertakings,Supplies And Services - Equipt.  Furn. & Materials    ,08/12/2017,642612,503.00,Revenue,CRD45186,Electronic Temperature Instruments Ltd  
Shropshire,00GG,Children's and Education Services - Social Care and Safeguards Other,Supplies And Services - Miscellaneous Expenses        ,08/12/2017,427.664,978.25,Revenue,CRD79685,Elmhurst Psychology Ltd                 
Shropshire,00GG,Adult Social Care - Adults aged under 65 with mental health needs,Supplies And Services - Communications & Computing    ,08/12/2017,51217,9.05,Revenue,CRT03854,Enable - Telford Imp A/C 
Shropshire,00GG,Adult Social Care - Adults aged under 65 with mental health needs,Supplies And Services - Miscellaneous Expenses        ,08/12/2017,51217,932.45,Revenue,CRT03854,Enable - Telford Imp A/C
Shropshire,00GG,None SeRCOP - Capital,Contingency/Other Capital - Capital - Plant  Equipt & Furn,08/12/2017,22615,"1,726.00",Capital,STX00358,Eric Neville Catering Supplies Ltd      
Shropshire,00GG,Environment & Regulatory - Regulatory Services,Supplies And Services - Miscellaneous Expenses        ,08/12/2017,21963,"2,090.00",Revenue,CRD82494,Frank Painter & Sons Ltd                
Shropshire,00GG,Children's and Education Services  - School and Pupil Support,Transport Related - Contracts                     ,08/12/2017,X51480033OCT17  ,"1,938.00",Revenue,CRT02436,G F Ratcliff                            
Shropshire,00GG,None SeRCOP - Capital,Contingency/Other Capital - Capital - Professional Fees   ,08/12/2017,11956,245.00,Capital,CRT05478,Greenhouse School Websites              
Shropshire,00GG,None SeRCOP - Capital,Contingency/Other Capital - Capital - Professional Fees   ,08/12/2017,11956,295.00,Capital,CRT05478,Greenhouse School Websites              
Shropshire,00GG,None SeRCOP - Capital,Contingency/Other Capital - Capital - Professional Fees   ,08/12/2017,11956,995.00,Capital,CRT05478,Greenhouse School Websites              
Shropshire,00GG,"Cultural, Environmental, Regulatory and Planning Services  - Environmental initiatives",Supplies And Services - Miscellaneous Expenses        ,08/12/2017,17776,671.16,Revenue,CRD99347,Griffiths Farm Supplies Limited         
Shropshire,00GG,Adult Social Care - Older people (aged 65 or over) including older mentally ill,Supplies And Services - Communications & Computing    ,08/12/2017,329972,"9,449.60",Revenue,CRT05284,Has Technology Limited                  
Shropshire,00GG,Central Services - Trading undertakings,Supplies And Services - Catering                      ,08/12/2017,36338,561.40,Revenue,CRD73193,Janes Beverages Foodservice Ltd         
Shropshire,00GG,Adult Social Care - Adults aged under 65 with learning disabilities,Transport Related - Direct Transport Costs        ,08/12/2017,5P102518675OCT17,"2,376.00",Revenue,CRD77164,Jeff'S Taxis & Minibuses                
Shropshire,00GG,None SeRCOP - Capital,Contingency/Other Capital - Capital - Plant  Equipt & Furn,08/12/2017,I1092435        ,176.00,Capital,CRD55486,Jigsaw Systems Ltd                      
Shropshire,00GG,None SeRCOP - Capital,Contingency/Other Capital - Capital - Plant  Equipt & Furn,08/12/2017,I1092435        ,"1,956.00",Capital,CRD55486,Jigsaw Systems Ltd                      
Shropshire,00GG,Highways and Transport Services - Traffic Management & Road Safety,Supplies And Services - Miscellaneous Expenses        ,08/12/2017,7,"8,634.00",Revenue,CRT05760,Learncycling                            
Shropshire,00GG,Children's and Education Services - Social Care and Safeguards Other,Supplies And Services - Printing & Stationery         ,08/12/2017,IMPREST NOV2017 ,14.00,Revenue,CRD66629,Leaving Care Imprest Acc
Shropshire,00GG,Children's and Education Services - Social Care and Safeguards Looked After Children,Supplies And Services - Miscellaneous Expenses        ,08/12/2017,IMPREST NOV2017 ,20.99,Revenue,CRD66629,Leaving Care Imprest Acc
Shropshire,00GG,Children's and Education Services - Social Care and Safeguards Looked After Children,Supplies And Services - Clothing Uniform & Laundry    ,08/12/2017,IMPREST NOV2017 ,56.25,Revenue,CRD66629,Leaving Care Imprest Acc
Shropshire,00GG,Children's and Education Services - Social Care and Safeguards Looked After Children,Transport Related - Public Transport              ,08/12/2017,IMPREST NOV2017 ,61.50,Revenue,CRD66629,Leaving Care Imprest Acc
Shropshire,00GG,Children's and Education Services - Social Care and Safeguards,Transport Related - Public Transport              ,08/12/2017,IMPREST NOV2017 ,80.00,Revenue,CRD66629,Leaving Care Imprest Acc
Shropshire,00GG,Children's and Education Services - Social Care and Safeguards Looked After Children,Supplies And Services - Miscellaneous Expenses        ,08/12/2017,IMPREST NOV2017 ,290.55,Revenue,CRD66629,Leaving Care Imprest Acc
Shropshire,00GG,Children's and Education Services - Social Care and Safeguards Looked After Children,Third Party Payments - Other Committees/Establishmts ,08/12/2017,IMPREST NOV2017 ,348.00,Revenue,CRD66629,Leaving Care Imprest Acc
Shropshire,00GG,Children's and Education Services - Social Care and Safeguards,Third Party Payments - Other Committees/Establishmts ,08/12/2017,IMPREST NOV2017 ,696.00,Revenue,CRD66629,Leaving Care Imprest Acc
Shropshire,00GG,Public Health - Other,Supplies And Services - Miscellaneous Expenses        ,08/12/2017,77778,500.00,Revenue,EMO00056,Leo Charalambides                       
Shropshire,00GG,Children's and Education Services - Social Care and Safeguards Other,Supplies And Services - Miscellaneous Expenses        ,08/12/2017,10,532.68,Revenue,EMO00084,Linda Teebay                            
Shropshire,00GG,Central Services - Trading Services,Supplies And Services - Communications & Computing    ,08/12/2017,12094159,"1,774.08",Revenue,CRT05578,Maintel Europe Limited                  
Shropshire,00GG,Public Health - Other,Third Party Payments - Private Contractors           ,08/12/2017,16779,570.00,Revenue,CRT01815,Mallina Group                           
Shropshire,00GG,Adult Social Care - Older people (aged 65 or over) including older mentally ill,Employees - Indirect Employee Expenses    ,08/12/2017,INV231776       ,100.86,Revenue,CRT02641,Newcross Healthcare Solutions           
Shropshire,00GG,Adult Social Care - Older people (aged 65 or over) including older mentally ill,Employees - Indirect Employee Expenses    ,08/12/2017,INV231776       ,104.89,Revenue,CRT02641,Newcross Healthcare Solutions           
Shropshire,00GG,Adult Social Care - Older people (aged 65 or over) including older mentally ill,Employees - Indirect Employee Expenses    ,08/12/2017,INV231776       ,107.38,Revenue,CRT02641,Newcross Healthcare Solutions           
Shropshire,00GG,Adult Social Care - Older people (aged 65 or over) including older mentally ill,Employees - Indirect Employee Expenses    ,08/12/2017,INV231776       ,119.03,Revenue,CRT02641,Newcross Healthcare Solutions           
Shropshire,00GG,Adult Social Care - Older people (aged 65 or over) including older mentally ill,Employees - Indirect Employee Expenses    ,08/12/2017,INV231776       ,125.63,Revenue,CRT02641,Newcross Healthcare Solutions           
Shropshire,00GG,Adult Social Care - Older people (aged 65 or over) including older mentally ill,Employees - Indirect Employee Expenses    ,08/12/2017,INV231776       ,130.33,Revenue,CRT02641,Newcross Healthcare Solutions           
Shropshire,00GG,Adult Social Care - Older people (aged 65 or over) including older mentally ill,Employees - Indirect Employee Expenses    ,08/12/2017,INV231776       ,149.85,Revenue,CRT02641,Newcross Healthcare Solutions           
Shropshire,00GG,Adult Social Care - Older people (aged 65 or over) including older mentally ill,Employees - Indirect Employee Expenses    ,08/12/2017,INV231776       ,183.30,Revenue,CRT02641,Newcross Healthcare Solutions           
Shropshire,00GG,Adult Social Care - Older people (aged 65 or over) including older mentally ill,Employees - Indirect Employee Expenses    ,08/12/2017,INV231776       ,184.70,Revenue,CRT02641,Newcross Healthcare Solutions           
Shropshire,00GG,Adult Social Care - Older people (aged 65 or over) including older mentally ill,Employees - Indirect Employee Expenses    ,08/12/2017,INV231776       ,226.04,Revenue,CRT02641,Newcross Healthcare Solutions           
Shropshire,00GG,Adult Social Care - Older people (aged 65 or over) including older mentally ill,Employees - Indirect Employee Expenses    ,08/12/2017,INV231776       ,236.43,Revenue,CRT02641,Newcross Healthcare Solutions           
Shropshire,00GG,Adult Social Care - Older people (aged 65 or over) including older mentally ill,Employees - Indirect Employee Expenses    ,08/12/2017,INV231776       ,357.27,Revenue,CRT02641,Newcross Healthcare Solutions           
Shropshire,00GG,Adult Social Care - Older people (aged 65 or over) including older mentally ill,Employees - Indirect Employee Expenses    ,08/12/2017,INV231776       ,357.27,Revenue,CRT02641,Newcross Healthcare Solutions           
Shropshire,00GG,Adult Social Care - Older people (aged 65 or over) including older mentally ill,Employees - Indirect Employee Expenses    ,08/12/2017,INV231776       ,453.14,Revenue,CRT02641,Newcross Healthcare Solutions           
Shropshire,00GG,Public Health - Other,Third Party Payments - Private Contractors           ,08/12/2017,8122,593.84,Revenue,CRD82043,Orion Medical Supplies Ltd              
Shropshire,00GG,Children's and Education Services - Other Strategic Functions,Employees - Supply Teachers-Sickness      ,08/12/2017,51224967,748.50,Revenue,CRD79591,Protocol Education Ltd                  
Shropshire,00GG,Children's and Education Services - Other Strategic Functions,Employees - Supply Teachers-Sickness      ,08/12/2017,51226567,461.92,Revenue,CRD79591,Protocol Education Ltd                  
Shropshire,00GG,Children's and Education Services - Non School Funding,Supplies And Services - Communications & Computing    ,08/12/2017,17075231,42.20,Revenue,CRD89440,Royal Mail Group Ltd                    
Shropshire,00GG,Children's and Education Services - Non School Funding,Supplies And Services - Communications & Computing    ,08/12/2017,17075231,430.87,Revenue,CRD89440,Royal Mail Group Ltd                    
Shropshire,00GG,Public Health - Coroners' Court Services,Third Party Payments - Health Authorities            ,08/12/2017,10121398,"10,414.67",Revenue,CRD38966,Royal Shrewsbury Hospital Nhs Trust     
Shropshire,00GG,Public Health - Coroners' Court Services,Third Party Payments - Health Authorities            ,08/12/2017,10122129,"10,414.67",Revenue,CRD38966,Royal Shrewsbury Hospital Nhs Trust     
Shropshire,00GG,Public Health - Coroners' Court Services,Third Party Payments - Health Authorities            ,08/12/2017,19009047,"-10,414.67",Revenue,CRD38966,Royal Shrewsbury Hospital Nhs Trust     
Shropshire,00GG,Public Health - Coroners' Court Services,Third Party Payments - Health Authorities            ,08/12/2017,19009048,"-10,414.67",Revenue,CRD38966,Royal Shrewsbury Hospital Nhs Trust     
Shropshire,00GG,None SeRCOP - Capital,Contingency/Other Capital - Capital - Construction/Conver ,08/12/2017,79080,475.00,Capital,CRD96798,Shield On-Site Services Ltd             
Shropshire,00GG,None SeRCOP - Capital,Contingency/Other Capital - Capital - Construction/Conver ,08/12/2017,80475,"2,376.00",Capital,CRD96798,Shield On-Site Services Ltd             
Shropshire,00GG,None SeRCOP - Capital,Contingency/Other Capital - Capital - Construction/Conver ,08/12/2017,80476,"2,376.00",Capital,CRD96798,Shield On-Site Services Ltd             
Shropshire,00GG,None SeRCOP - Capital,Contingency/Other Capital - Capital - Construction/Conver ,08/12/2017,80576,"2,362.00",Capital,CRD96798,Shield On-Site Services Ltd             
Shropshire,00GG,None SeRCOP - Capital,Contingency/Other Capital - Capital - Construction/Conver ,08/12/2017,80609,"1,161.00",Capital,CRD96798,Shield On-Site Services Ltd             
Shropshire,00GG,None SeRCOP - Capital,Contingency/Other Capital - Capital - Professional Fees   ,08/12/2017,80996,760.00,Capital,CRD96798,Shield On-Site Services Ltd             
Shropshire,00GG,None SeRCOP - Capital,Contingency/Other Capital - Capital - Professional Fees   ,08/12/2017,81122,760.00,Capital,CRD96798,Shield On-Site Services Ltd             
Shropshire,00GG,None SeRCOP - Capital,Contingency/Other Capital - Capital - Construction/Conver ,08/12/2017,81125,"1,140.00",Capital,CRD96798,Shield On-Site Services Ltd             
Shropshire,00GG,None SeRCOP - Capital,Contingency/Other Capital - Capital - Construction/Conver ,08/12/2017,81130,760.00,Capital,CRD96798,Shield On-Site Services Ltd             
Shropshire,00GG,None SeRCOP - Capital,Contingency/Other Capital - Capital - Construction/Conver ,08/12/2017,81163,475.00,Capital,CRD96798,Shield On-Site Services Ltd             
Shropshire,00GG,Central Services - Trading Services,Premises Related - Grounds Maintenance Costs     ,08/12/2017,1718063,266.66,Revenue,CRT01932,Shrewsbury Business Improvement Dist Ltd
Shropshire,00GG,Central Services - Trading Services,Premises Related - Grounds Maintenance Costs     ,08/12/2017,1718063,266.67,Revenue,CRT01932,Shrewsbury Business Improvement Dist Ltd
Shropshire,00GG,Central Services - Trading Services,Supplies And Services - Equipt.  Furn. & Materials    ,08/12/2017,244/18/0029713  ,210.44,Revenue,CRD15928,Siemens Financial Services              
Shropshire,00GG,County Training trading account - Training,Supplies And Services - Equipt.  Furn. & Materials    ,08/12/2017,244/18/0029713  ,210.44,Revenue,CRD15928,Siemens Financial Services              
Shropshire,00GG,County Training trading account - Training,Supplies And Services - Equipt.  Furn. & Materials    ,08/12/2017,244/18/0029713  ,210.45,Revenue,CRD15928,Siemens Financial Services              
Shropshire,00GG,Adult Social Care - Older people (aged 65 or over) including older mentally ill,Third Party Payments - Private Contractors           ,08/12/2017,6209,"1,265.60",Revenue,CRT03383,Suncare Home Care Ltd                   
Shropshire,00GG,Public Health - Other,Third Party Payments - Private Contractors           ,08/12/2017,2000002766,"-1,052.00",Revenue,CRT00576,The Dudley Group Nhs Foundation Trust   
Shropshire,00GG,Public Health - Other,Third Party Payments - Private Contractors           ,08/12/2017,2000005279,898.00,Revenue,CRT00576,The Dudley Group Nhs Foundation Trust   
Shropshire,00GG,"Cultural, Environmental, Regulatory and Planning Services  - Development Control",Employees - Indirect Employee Expenses    ,08/12/2017,1024014,"1,318.35",Revenue,CRT04116,The Oyster Partnership Ltd              
Shropshire,00GG,Central Services - Trading Services,Employees - Support Staff                 ,08/12/2017,1024015,735.00,Revenue,CRT04116,The Oyster Partnership Ltd              
Shropshire,00GG,Central Services - Trading Services,Employees - Support Staff                 ,08/12/2017,1024015,"1,225.00",Revenue,CRT04116,The Oyster Partnership Ltd              
Shropshire,00GG,Central Services - Trading Services,Employees - Support Staff                 ,08/12/2017,1024015,"1,225.00",Revenue,CRT04116,The Oyster Partnership Ltd              
Shropshire,00GG,Central Services - Trading Services,Employees - Support Staff                 ,08/12/2017,1024015,"1,225.00",Revenue,CRT04116,The Oyster Partnership Ltd              
Shropshire,00GG,Housing Services - Homelessness,Premises Related - Rents                         ,08/12/2017,333,"1,715.00",Revenue,CRD83320,The Raven Hotel                         
Shropshire,00GG,Housing Services - Homelessness,Premises Related - Rents                         ,08/12/2017,334,"1,645.00",Revenue,CRD83320,The Raven Hotel                         
Shropshire,00GG,Housing Services - Homelessness,Premises Related - Rents                         ,08/12/2017,335,"1,610.00",Revenue,CRD83320,The Raven Hotel                         
Shropshire,00GG,Highways and Transport Services - Parking Services,Premises Related - Water                         ,08/12/2017,INV00762099     ,"1,226.35",Revenue,CRT05785,Water Plus Ltd                          
Shropshire,00GG,Highways and Transport Services - Parking Services,Premises Related - Water                         ,08/12/2017,INV00762109     ,647.18,Revenue,CRT05785,Water Plus Ltd                          
Shropshire,00GG,Highways and Transport Services - Parking Services,Premises Related - Water                         ,08/12/2017,INV00762142     ,"1,226.35",Revenue,CRT05785,Water Plus Ltd                          
Shropshire,00GG,Highways and Transport Services - Parking Services,Premises Related - Water                         ,08/12/2017,INV00762170     ,"1,226.35",Revenue,CRT05785,Water Plus Ltd                          
Shropshire,00GG,Highways and Transport Services - Parking Services,Premises Related - Water                         ,08/12/2017,INV00762197     ,647.18,Revenue,CRT05785,Water Plus Ltd                          
Shropshire,00GG,Highways and Transport Services - Parking Services,Premises Related - Water                         ,08/12/2017,INV00762198     ,647.18,Revenue,CRT05785,Water Plus Ltd                          
Shropshire,00GG,Highways and Transport Services - Parking Services,Premises Related - Water                         ,08/12/2017,INV00762217     ,"1,858.14",Revenue,CRT05785,Water Plus Ltd                          
